Workbook

Sheet TEMPLATE Zahlungsantrag (hidden)
J1: Agrarmarkt Austria
J2: Dresdner Straße 70 | AN2: =VLOOKUP(PaymAppl_IntentCode,ProjectTypeSponsors,2) -> BMNT/LE1420/LD/EU
J3: A-1200 Wien | AN3: BMNT/LE1420/LD/EU
J4: www.ama.at | AN4: 3
J5: DVR: 0719838 | AN5: Logo-NOe
A7: Zahlungsantrag
A8: zur Auszahlung einer Förderung eines Vorhabens
A9: im Rahmen des Österreichischen Programms für ländliche Entwicklung 2014 - 2020
A11: Antragsnummer des betroffenen Vorhabens | Y11: Eingangsvermerk (Einreich-/Bewilligende Stelle)
A14: Bei vorgelegter Abrechnung handelt es sich um die
AN16: 1
A18: Der Gebietskörperschaftsanteil beträgt in % | AN18: =IF(PaymAppl_PartialPaymSelect=1,IF(TRIM(PaymAppl_PartialPaymID)="",""," / TZ " & TRIM(PaymAppl_PartialPaymID))," / EndZ") -> 
A20: Vorhaben
A22: Code / Vorhabensart
A23: Bitte auswählen
A25: Kurzbezeichnung des Vorhabens:
A27: Angaben zum Förderungswerber/zur Förderungswerberin | AN27: 1
A29: Betriebs- bzw. Klientennummer: | X29: Vorsteuerabzugsberechtigt | AN29: =IF(AN27=1,"Ja","Nein") -> Ja
AN31: 1
B32: Titel, Name, Vorname | AA32: Geburtsdatum | AN32: =TRIM(PaymAppl_IndividualName) -> 
B35: Titel, Name, Vorname | AA35: Geburtsdatum | AN35: =IF(TRIM(PaymAppl_CoupleNameA)="","???",TRIM(PaymAppl_CoupleNameA)) -> ???
B37: Titel, Name, Vorname | AA37: Geburtsdatum | AN37: =IF(TRIM(PaymAppl_CoupleNameB)="","???",TRIM(PaymAppl_CoupleNameB)) -> ???
B40: Name/Unternehmen | AN40: =TRIM(PaymAppl_LegalEntityName) -> 
B42: Gesellschaftsform | AA42: ZVR/FB-Nr./GKZ
B45: Name | AN45: =TRIM(PaymAppl_PersonGroupName) -> 
B47: Gesellschaftsform
A49: Vertretungsbefugte/r | AA49: Geburtsdatum
A51: Vertretungsbefugte/r | AA51: Geburtsdatum
A53: Zustelladresse: Straße, Hausnr.
A55: Zustelladresse: PLZ, Ort
A57: Betriebsadresse: Straße, Hausnr.
A59: Betriebsadresse: PLZ, Ort
A61: Mobil-,Telefonnr./Email-/Internetadresse
A63: Bankverbindung
A65: IBAN | AA65: BIC
A67: ACHTUNG: | F67: Alle Zahlungen werden auf die letzte von Ihnen bekanntgegebene Bankverbindung überwiesen. Ihr Auszahlungskonto können Sie jederzeit im eAMA unter KUNDENDATEN einsehen und ändern.
A69: Förderungswerber/in | H69: =IF(AN31=1,AN32,IF(AN31=2,AN35 & "/" & AN37,IF(AN31=3,AN40,IF(AN31=4,AN45,"???")))) ->  | W69: Betriebs-/Klientennummer | AF69: =IF(ISBLANK(M29),"",M29) -> 
A71: Zahlungsantrag (Seite 2)
A73: eingereichte Kosten
C75: Belegbetrag brutto | L75: Belegbetrag netto | U75: eingereichte Kosten | AD75: Einnahmen
I77: € | R77: € | AA77: € | AJ77: €
A79: genehmigter Zeitraum für die Kostenanerkennung | W79: von | AE79: bis
A81: Allgemeine Beilagen | AA81: liegt bei | AD81: wird nachgereicht | AI81: nicht erforderlich
A83: Abrechnungsbelege (Rechnungen, Honorarnoten, Jahreslohnkonten etc.)
A85: Belegaufstellung - Investitionen und Sachaufwand
A87: Belegaufstellung - unbare Eigenleistungen (=unbare Sachleistungen)
A89: Belegaufstellung Personalkosten
A91: Zeitaufzeichnungen, Tätigkeitsbeschreibungen
A93: Zahlungsnachweis/e
A95: Nachweis über die Einhaltung der Publizitätskriterien
A97: Sonstige Beilage(n):
A99: Vorhabensspezifische Beilagen, die spätestens mit der Endabrechnung vorgelegt werden müssen: | AA99: liegt bei | AD99: wird nachgereicht | AI99: nicht erforderlich
A101: Benutzungsbewilligung
A103: Endbericht
A105: Versichungsnachweis bei Investitionen in unbewegl. Investitionsgegenstände
A107: Evaluierungsdatenblatt
A109: Sonstige Beilage(n):
A111: Angaben zu anderen Förderungen/Zuschüssen | AC111: Keine weitere/n Förderung/en bzw. Zuschüsse
A113: Im Rahmen d. Projektes wurde bei folgenden anderen Förderstellen um eine Förderung bzw. einen Zuschuss angesucht:
A114: Geben Sie hier die entsprechende Stelle sowie die/den beantragte(n)/genehmigten(n)/erhaltene(n) Förderung/Zuschuss an!
AA115: Förderung/Zuschuss im Ausmaß von
A118: Bund: | AK118: €
A120: Land: | AK120: €
A122: Gemeinde/n: | AK122: €
A124: Mit meiner Unterschrift bestätige ich,
B125: -) dass ich alle Angaben im Zahlungsantrag und sämtlichen Beilagen mit bestem Wissen gemacht habe,
B126: -) Abrechnungsbelege nicht in unzulässiger Weise zur Abrechnung einer bei einer anderen Abwicklungsstelle beantragten Förderung eingebracht habe oder einreichen werde (unzulässige Mehrfachförderung)
B127: -) die Beantragung einer mit der LE-Projektförderung kumulierbaren Förderung bei einer anderen Förderungs- abwicklungsstelle der Bewilligenden Stelle gemeldet habe oder melden werde,
B128: -) allen Verpflichtungen gegenüber der Bewilligenden Stelle (z.B. Meldeverpflichtung) nachgekommen bin,
B129: -) dass alle Personen, deren Daten im Rahmen dieses Zahlungsantrages offengelegt wurden, von mir darüber informiert wurden, dass eine Verarbeitung ihrer Daten durch die Zahlstelle und Bewilligende Stelle für Zwecke
B130: der Abwicklung und Kontrolle der Förderung erfolgt.
A131: und ersuche um Auszahlung des entsprechenden Förderungsbetrages.
A134: Ort, Datum | I134: Name in Blockbuchstaben | Y134: Unterschrift bzw. firmenmäßige Zeichnung
AM135: RL/AMA v469.11 / Feb. 2019
A139: Liste verfügbarer Vorhabensarten (für Pop-Up-Menu)
A140: Bitte auswählen
A141: M 1 A) - Wissenstransfer und Informationsmaßnahmen in der Land- und Forstwirtschaft - Landwirtschaft
A142: M 1 B) - Wissenstransfer und Informationsmaßnahmen in der Land- und Forstwirtschaft - Forstwirtschaft
A143: -
A144: 2.1.1. A) - Inanspruchnahme von Beratungsleistungen - Landwirtschaft
A145: 2.1.1. B) - Inanspruchnahme von Beratungsleistungen - Forstwirtschaft
A146: 2.1.1. C) - Inanspruchnahme von Beratungsleistungen - KMU
A147: 2.3.1. - Ausbildung von BeraterInnen
A148: -
A149: 3.1.1. - Teilnahme der BewirtschafterInnen landwirtschaftlicher Betriebe an Lebensmittelqualitätsregelungen
A150: 3.2.1. - Informations- und Absatzförderungsmaßnahmen
A151: -
A152: 4.1.1. - Investitionen in die landwirtschaftliche Erzeugung
A153: 4.2.1. A) - Verarbeitung, Vermarktung und Entwicklung landwirtschaftlicher Erzeugnisse (Bewilligung AWS)
A154: 4.2.1. B) - Verarbeitung, Vermarktung und Entwicklung landwirtschaftlicher Erzeugnisse (Bewilligung Bundesländer)
A155: 4.3.1. - Investitionen in überbetriebliche Bewässerungsinfrastruktur
A156: 4.3.2. - Investitionen in die Infrastruktur für die Entwicklung, Modernisierung und Anpassung der Forstwirtschaft
A157: 4.4.1. - Nichtproduktive Investitionen – Ökologische Verbesserung von Gewässern in landwirtschaftlich geprägten Regionen
A158: 4.4.2. - Nichtproduktive Investitionen – Investitionen zur Stabilisierung von Rutschungen
A159: 4.4.3. - Nichtproduktive Investitionen – Ökologische Agrarinfrastruktur zur Flurentwicklung
A160: -
A161: 6.1.1. - Existenzgründungsbeihilfen für JunglandwirtInnen
A162: 6.4.1. - Diversifizierung hin zu nichtlandwirtschaftlichen Tätigkeiten
A163: 6.4.2. - Diversifizierung lw. und fw. Betriebe durch Energie aus nachwachsenden Rohstoffen sowie Energiedienstleistungen
A164: 6.4.3. - Photovoltaik in der Landwirtschaft
A165: 6.4.4. - Gründung von innovativen Kleinunternehmen im ländlichen Raum
A166: 6.4.5. - Förderung von Nahversorgungsbetrieben einschließlich gewerblicher Beherbergungs- und Gastronomiebetriebe
A167: -
A168: 7.1.1. A) - Pläne und Entwicklungskonzepte zur Erhaltung des natürlichen Erbes - Naturschutz - Bund
A169: 7.1.1. A) - Pläne und Entwicklungskonzepte zur Erhaltung des natürlichen Erbes - Naturschutz - Länder
A170: 7.1.1. B) - Pläne und Entwicklungskonzepte zur Erhaltung des natürlichen Erbes - Nationalparks
A171: 7.1.2. - Pläne und Entwicklungskonzepte zur Dorferneuerung
A172: 7.1.3. - Lokale Agenda 21 - Bund
A173: 7.1.3. - Lokale Agenda 21 - Länder
A174: 7.2.1. - Ländliche Verkehrsinfrastruktur
A175: 7.2.2. - Investitionen in erneuerbare Energien
A176: 7.2.3. - Umsetzung von Klima- und Energieprojekten auf lokaler Ebene
A177: 7.3.1. - Breitbandinfrastruktur in ländlichen Gebieten
A178: 7.4.1. A) - Soziale Angelegenheiten - BMASK
A179: 7.4.1. B) - Soziale Angelegenheiten - BMG
A180: 7.4.2. - Klimafreundliche Mobilitätslösungen (klimaaktiv mobil)
A181: 7.5.1. A) - Investitionen in kleine touristische Infrastruktur - BMNT
A182: 7.5.1. B) - Investitionen in kleine touristische Infrastruktur - Forst
A183: 7.5.1. C) - Investitionen in kleine touristische Infrastruktur - Länder
A184: 7.6.1. A) - Studien und Investitionen zur Erhaltung, Wiederherstellung und Verbesserung des natürlichen Erbes - Naturschutz - Bund
A185: 7.6.1. A) - Studien und Investitionen zur Erhaltung, Wiederherstellung und Verbesserung des natürlichen Erbes - Naturschutz - Länder
A186: 7.6.1. B) - Studien und Investitionen zur Erhaltung, Wiederherstellung und Verbesserung des natürlichen Erbes - Nationalparks
A187: 7.6.1. C) - Studien und Investitionen zur Erhaltung, Wiederherstellung und Verbesserung des natürlichen Erbes - Forst
A188: 7.6.2. - Umsetzung von Plänen zur Dorferneuerung und Gemeindeentwicklung
A189: 7.6.3. - Erhaltung und Entwicklung der Kulturlandschaft
A190: 7.6.4. - Überbetriebliche Maßnahmen für die Bereiche Wald und Schutz vor Naturgefahren
A191: 7.6.5. - Stärkung der Potenziale des alpinen ländlichen Raums
A192: -
A193: 8.1.1. - Aufforstung und Anlage von Wäldern
A194: 8.4.1. - Vorbeugung von Schäden und Wiederherstellung von Wäldern nach Naturkatastrophen und Katastrophenereignissen - Forstschutz
A195: 8.5.1. - Investitionen zur Stärkung von Resistenz und ökologischem Wert des Waldes - Öffentlicher Wert & Schutz vor Naturgefahren
A196: 8.5.2. - Investitionen zur Stärkung von Resistenz und ökologischem Wert des Waldes - Genetische Ressourcen
A197: 8.5.3. - Investitionen zur Stärkung des ökologischen Werts der Waldökosysteme - Wald-Ökologie-Programm
A198: 8.6.1. - Investitionen in Forsttechniken, Verarbeitung, Mobilisierung und Vermarktung forstwirtschaftlicher Erzeugnisse
A199: 8.6.2. - Erstellung von waldbezogenen Plänen auf betrieblicher Ebene
A200: -
A201: 15.1.1. - Erhaltung von ökologisch wertvollen/seltenen Waldflächen /-gesellschaften
A202: 15.2.1. - Erhaltung und Verbesserung der genetischen Ressourcen des Waldes
A203: -
A204: 16.01.1. - Unterstützung beim Aufbau & Betrieb operationeller Gruppen der EIP für lw. Produktivität & Nachhaltigkeit
A205: 16.02.1. - Unterstützung bei der Entwicklung neuer Erzeugnisse, Verfahren & Technologien der Land-, Ernährungs- & Forstwirtschaft
A206: 16.02.2. A) - Unterstützung bei der Entwicklung von innovativen Pilotprojekten im Tourismus - BMNT
A207: 16.02.2. B) - Unterstützung bei der Entwicklung von innovativen Pilotprojekten im Tourismus - Länder
A208: 16.03.1. A) - Zusammenarbeit von kleinen WirtschaftsteilnehmerInnen - Arbeitsabläufe, Ressourcennutzung und Tourismusdienstleistungen
A209: 16.03.1. A) - Zusammenarbeit von kleinen WirtschaftsteilnehmerInnen - Arbeitsabläufe, Ressourcennutzung und Tourismusdienstleistungen - BMNT
A210: 16.03.1. B) - Zusammenarbeit von kleinen WirtschaftsteilnehmerInnen - Arbeitsabläufe, Ressourcennutzung und Tourismusdienstleistungen - BMNT
A211: 16.03.1. C) - Zusammenarbeit von kleinen WirtschaftsteilnehmerInnen - Arbeitsabläufe, Ressourcennutzung und Tourismusdienstleistungen - Länder
A212: 16.03.2. - Zusammenarbeit von Kleinstunternehmen im ländlichen Raum
A213: 16.04.1. - Schaffung und Entwicklung von kurzen Versorgungsketten und lokalen Märkten sowie unterstützende Absatzförderung
A214: 16.05.1. - Stärkung der horizontalen und vertikalen Zusammenarbeit zwischen AkteurInnen im forst- und wasserwirtschaftlichen Sektor
A215: 16.05.2. A) - Stärkung der Zusammenarbeit von AkteurInnen und Strukturen zur Erhaltung des natürlichen Erbes & des Umweltschutzes - Naturschutz
A216: 16.05.2. A) - Stärkung der Zusammenarbeit von AkteurInnen und Strukturen zur Erhaltung des natürlichen Erbes & des Umweltschutzes - Naturschutz - Länder
A217: 16.05.2. B) - Stärkung der Zusammenarbeit von AkteurInnen und Strukturen zur Erhaltung des natürlichen Erbes & des Umweltschutzes - Umweltschutz
A218: 16.05.2. C) - Stärkung der Zusammenarbeit von AkteurInnen und Strukturen zur Erhaltung des natürlichen Erbes & des Umweltschutzes - Nationalparks
A219: 16.08.1. - Waldbezogene Pläne auf überbetrieblicher Ebene
A220: 16.09.1. - Förderung horizontaler & vertikaler Zusammenarbeit lw. & fw. AkteurInnen zur Schaffung & Entwicklung v. Sozialleistungen - BMNT
A221: 16.10.1. - Einrichtung und Betrieb von Clustern - BMNT
A222: 16.10.2. - Einrichtung und Betrieb von Netzwerken - BMNT
A223: 16.10.3. - Zusammenarbeit: Erzeugergemeinschaften /-organisationen, Genossenschaften und Branchenverbände - BMNT
A224: -
A225: 19.1.1. - Erstellung der lokalen Entwicklungsstrategie - Länder
A226: 19.1.1. - Erstellung der lokalen Entwicklungsstrategie
A227: 19.2.1. - Umsetzung der lokalen Entwicklungsstrategie - Länder
A228: 19.2.1. - Umsetzung der lokalen Entwicklungsstrategie
A229: 19.3.1. - Umsetzung von nationalen oder transnationalen Kooperationsprojekten - Länder
A230: 19.3.1. - Umsetzung von nationalen oder transnationalen Kooperationsprojekten
A231: 19.4.1. - Laufende Kosten des LAG-Managements und Sensibilisierung - Länder
A232: 19.4.1. - Laufende Kosten des LAG-Managements und Sensibilisierung
A233: -
A234: 20.1. - Technische Hilfe (außer Netzwerk)
A235: 20.2. - Technische Hilfe - Netzwerk

Sheet Zahlungsantrag LEW14-20
J1: Agrarmarkt Austria
J2: Dresdner Straße 70 | AN2: =VLOOKUP(PaymAppl_IntentCode,ProjectTypeSponsors,2) -> BMNT/LE1420/LD/EU
J3: A-1200 Wien | AN3: BMNT/LE1420/LD/EU
J4: www.ama.at | AN4: 3
J5: DVR: 0719838 | AN5: Logo-NOe
A7: Zahlungsantrag
A8: zur Auszahlung einer Förderung eines Vorhabens
A9: im Rahmen des Österreichischen Programms für ländliche Entwicklung 2014 - 2020
A11: Antragsnummer des betroffenen Vorhabens | Y11: Eingangsvermerk (Einreich-/Bewilligende Stelle)
A14: Bei vorgelegter Abrechnung handelt es sich um die
AN16: 1
A18: Der Gebietskörperschaftsanteil beträgt in % | AN18: =IF(PaymAppl_PartialPaymSelect=1,IF(TRIM(PaymAppl_PartialPaymID)="",""," / TZ " & TRIM(PaymAppl_PartialPaymID))," / EndZ") -> 
A20: Vorhaben
A22: Code / Vorhabensart
A23: Bitte auswählen
A25: Kurzbezeichnung des Vorhabens:
A27: Angaben zum Förderungswerber/zur Förderungswerberin | AN27: 1
A29: Betriebs- bzw. Klientennummer: | X29: Vorsteuerabzugsberechtigt | AN29: =IF(AN27=1,"Ja","Nein") -> Ja
AN31: 1
B32: Titel, Name, Vorname | AA32: Geburtsdatum | AN32: =TRIM(PaymAppl_IndividualName) -> 
B35: Titel, Name, Vorname | AA35: Geburtsdatum | AN35: =IF(TRIM(PaymAppl_CoupleNameA)="","???",TRIM(PaymAppl_CoupleNameA)) -> ???
B37: Titel, Name, Vorname | AA37: Geburtsdatum | AN37: =IF(TRIM(PaymAppl_CoupleNameB)="","???",TRIM(PaymAppl_CoupleNameB)) -> ???
B40: Name/Unternehmen | AN40: =TRIM(PaymAppl_LegalEntityName) -> 
B42: Gesellschaftsform | AA42: ZVR/FB-Nr./GKZ
B45: Name | AN45: =TRIM(PaymAppl_PersonGroupName) -> 
B47: Gesellschaftsform
A49: Vertretungsbefugte/r | AA49: Geburtsdatum
A51: Vertretungsbefugte/r | AA51: Geburtsdatum
A53: Zustelladresse: Straße, Hausnr.
A55: Zustelladresse: PLZ, Ort
A57: Betriebsadresse: Straße, Hausnr.
A59: Betriebsadresse: PLZ, Ort
A61: Mobil-,Telefonnr./Email-/Internetadresse
A63: Bankverbindung
A65: IBAN | AA65: BIC
A67: ACHTUNG: | F67: Alle Zahlungen werden auf die letzte von Ihnen bekanntgegebene Bankverbindung überwiesen. Ihr Auszahlungskonto können Sie jederzeit im eAMA unter KUNDENDATEN einsehen und ändern.
A69: Förderungswerber/in | H69: =IF(AN31=1,AN32,IF(AN31=2,AN35 & "/" & AN37,IF(AN31=3,AN40,IF(AN31=4,AN45,"???")))) ->  | W69: Betriebs-/Klientennummer | AF69: =IF(ISBLANK(M29),"",M29) -> 
A71: Zahlungsantrag (Seite 2)
A73: eingereichte Kosten
C75: Belegbetrag brutto | L75: Belegbetrag netto | U75: eingereichte Kosten | AD75: Einnahmen
C77: =Übersicht!D54 -> 0 | I77: € | L77: =IF(PaymAppl_TaxDeduct= "Nein", "---", Übersicht!E54) -> 0 | R77: € | U77: =Übersicht!F54 -> 0 | AA77: € | AD77: =Übersicht!L54 -> 0 | AJ77: €
A79: genehmigter Zeitraum für die Kostenanerkennung | W79: von | AE79: bis
A81: Allgemeine Beilagen | AA81: liegt bei | AD81: wird nachgereicht | AI81: nicht erforderlich
A83: Abrechnungsbelege (Rechnungen, Honorarnoten, Jahreslohnkonten etc.)
A85: Belegaufstellung - Investitionen und Sachaufwand
A87: Belegaufstellung - unbare Eigenleistungen (=unbare Sachleistungen)
A89: Belegaufstellung Personalkosten
A91: Zeitaufzeichnungen, Tätigkeitsbeschreibungen
A93: Zahlungsnachweis/e
A95: Nachweis über die Einhaltung der Publizitätskriterien
A97: Sonstige Beilage(n):
A99: Vorhabensspezifische Beilagen, die spätestens mit der Endabrechnung vorgelegt werden müssen: | AA99: liegt bei | AD99: wird nachgereicht | AI99: nicht erforderlich
A101: Benutzungsbewilligung
A103: Endbericht
A105: Versichungsnachweis bei Investitionen in unbewegl. Investitionsgegenstände
A107: Evaluierungsdatenblatt
A109: Sonstige Beilage(n):
A111: Angaben zu anderen Förderungen/Zuschüssen | AC111: Keine weitere/n Förderung/en bzw. Zuschüsse
A113: Im Rahmen d. Projektes wurde bei folgenden anderen Förderstellen um eine Förderung bzw. einen Zuschuss angesucht:
A114: Geben Sie hier die entsprechende Stelle sowie die/den beantragte(n)/genehmigten(n)/erhaltene(n) Förderung/Zuschuss an!
AA115: Förderung/Zuschuss im Ausmaß von
A118: Bund: | AK118: €
A120: Land: | AK120: €
A122: Gemeinde/n: | AK122: €
A124: Mit meiner Unterschrift bestätige ich,
B125: -) dass ich alle Angaben im Zahlungsantrag und sämtlichen Beilagen mit bestem Wissen gemacht habe,
B126: -) Abrechnungsbelege nicht in unzulässiger Weise zur Abrechnung einer bei einer anderen Abwicklungsstelle beantragten Förderung eingebracht habe oder einreichen werde (unzulässige Mehrfachförderung)
B127: -) die Beantragung einer mit der LE-Projektförderung kumulierbaren Förderung bei einer anderen Förderungs- abwicklungsstelle der Bewilligenden Stelle gemeldet habe oder melden werde,
B128: -) allen Verpflichtungen gegenüber der Bewilligenden Stelle (z.B. Meldeverpflichtung) nachgekommen bin,
B129: -) dass alle Personen, deren Daten im Rahmen dieses Zahlungsantrages offengelegt wurden, von mir darüber informiert wurden, dass eine Verarbeitung ihrer Daten durch die Zahlstelle und Bewilligende Stelle für Zwecke
B130: der Abwicklung und Kontrolle der Förderung erfolgt.
A131: und ersuche um Auszahlung des entsprechenden Förderungsbetrages.
A134: Ort, Datum | I134: Name in Blockbuchstaben | Y134: Unterschrift bzw. firmenmäßige Zeichnung
AM135: RL/AMA v469.11 / Feb. 2019
A139: Liste verfügbarer Vorhabensarten (für Pop-Up-Menu)
A140: Bitte auswählen
A141: M 1 A) - Wissenstransfer und Informationsmaßnahmen in der Land- und Forstwirtschaft - Landwirtschaft
A142: M 1 B) - Wissenstransfer und Informationsmaßnahmen in der Land- und Forstwirtschaft - Forstwirtschaft
A143: -
A144: 2.1.1. A) - Inanspruchnahme von Beratungsleistungen - Landwirtschaft
A145: 2.1.1. B) - Inanspruchnahme von Beratungsleistungen - Forstwirtschaft
A146: 2.1.1. C) - Inanspruchnahme von Beratungsleistungen - KMU
A147: 2.3.1. - Ausbildung von BeraterInnen
A148: -
A149: 3.1.1. - Teilnahme der BewirtschafterInnen landwirtschaftlicher Betriebe an Lebensmittelqualitätsregelungen
A150: 3.2.1. - Informations- und Absatzförderungsmaßnahmen
A151: -
A152: 4.1.1. - Investitionen in die landwirtschaftliche Erzeugung
A153: 4.2.1. A) - Verarbeitung, Vermarktung und Entwicklung landwirtschaftlicher Erzeugnisse (Bewilligung AWS)
A154: 4.2.1. B) - Verarbeitung, Vermarktung und Entwicklung landwirtschaftlicher Erzeugnisse (Bewilligung Bundesländer)
A155: 4.3.1. - Investitionen in überbetriebliche Bewässerungsinfrastruktur
A156: 4.3.2. - Investitionen in die Infrastruktur für die Entwicklung, Modernisierung und Anpassung der Forstwirtschaft
A157: 4.4.1. - Nichtproduktive Investitionen – Ökologische Verbesserung von Gewässern in landwirtschaftlich geprägten Regionen
A158: 4.4.2. - Nichtproduktive Investitionen – Investitionen zur Stabilisierung von Rutschungen
A159: 4.4.3. - Nichtproduktive Investitionen – Ökologische Agrarinfrastruktur zur Flurentwicklung
A160: -
A161: 6.1.1. - Existenzgründungsbeihilfen für JunglandwirtInnen
A162: 6.4.1. - Diversifizierung hin zu nichtlandwirtschaftlichen Tätigkeiten
A163: 6.4.2. - Diversifizierung lw. und fw. Betriebe durch Energie aus nachwachsenden Rohstoffen sowie Energiedienstleistungen
A164: 6.4.3. - Photovoltaik in der Landwirtschaft
A165: 6.4.4. - Gründung von innovativen Kleinunternehmen im ländlichen Raum
A166: 6.4.5. - Förderung von Nahversorgungsbetrieben einschließlich gewerblicher Beherbergungs- und Gastronomiebetriebe
A167: -
A168: 7.1.1. A) - Pläne und Entwicklungskonzepte zur Erhaltung des natürlichen Erbes - Naturschutz - Bund
A169: 7.1.1. A) - Pläne und Entwicklungskonzepte zur Erhaltung des natürlichen Erbes - Naturschutz - Länder
A170: 7.1.1. B) - Pläne und Entwicklungskonzepte zur Erhaltung des natürlichen Erbes - Nationalparks
A171: 7.1.2. - Pläne und Entwicklungskonzepte zur Dorferneuerung
A172: 7.1.3. - Lokale Agenda 21 - Bund
A173: 7.1.3. - Lokale Agenda 21 - Länder
A174: 7.2.1. - Ländliche Verkehrsinfrastruktur
A175: 7.2.2. - Investitionen in erneuerbare Energien
A176: 7.2.3. - Umsetzung von Klima- und Energieprojekten auf lokaler Ebene
A177: 7.3.1. - Breitbandinfrastruktur in ländlichen Gebieten
A178: 7.4.1. A) - Soziale Angelegenheiten - BMASK
A179: 7.4.1. B) - Soziale Angelegenheiten - BMG
A180: 7.4.2. - Klimafreundliche Mobilitätslösungen (klimaaktiv mobil)
A181: 7.5.1. A) - Investitionen in kleine touristische Infrastruktur - BMNT
A182: 7.5.1. B) - Investitionen in kleine touristische Infrastruktur - Forst
A183: 7.5.1. C) - Investitionen in kleine touristische Infrastruktur - Länder
A184: 7.6.1. A) - Studien und Investitionen zur Erhaltung, Wiederherstellung und Verbesserung des natürlichen Erbes - Naturschutz - Bund
A185: 7.6.1. A) - Studien und Investitionen zur Erhaltung, Wiederherstellung und Verbesserung des natürlichen Erbes - Naturschutz - Länder
A186: 7.6.1. B) - Studien und Investitionen zur Erhaltung, Wiederherstellung und Verbesserung des natürlichen Erbes - Nationalparks
A187: 7.6.1. C) - Studien und Investitionen zur Erhaltung, Wiederherstellung und Verbesserung des natürlichen Erbes - Forst
A188: 7.6.2. - Umsetzung von Plänen zur Dorferneuerung und Gemeindeentwicklung
A189: 7.6.3. - Erhaltung und Entwicklung der Kulturlandschaft
A190: 7.6.4. - Überbetriebliche Maßnahmen für die Bereiche Wald und Schutz vor Naturgefahren
A191: 7.6.5. - Stärkung der Potenziale des alpinen ländlichen Raums
A192: -
A193: 8.1.1. - Aufforstung und Anlage von Wäldern
A194: 8.4.1. - Vorbeugung von Schäden und Wiederherstellung von Wäldern nach Naturkatastrophen und Katastrophenereignissen - Forstschutz
A195: 8.5.1. - Investitionen zur Stärkung von Resistenz und ökologischem Wert des Waldes - Öffentlicher Wert & Schutz vor Naturgefahren
A196: 8.5.2. - Investitionen zur Stärkung von Resistenz und ökologischem Wert des Waldes - Genetische Ressourcen
A197: 8.5.3. - Investitionen zur Stärkung des ökologischen Werts der Waldökosysteme - Wald-Ökologie-Programm
A198: 8.6.1. - Investitionen in Forsttechniken, Verarbeitung, Mobilisierung und Vermarktung forstwirtschaftlicher Erzeugnisse
A199: 8.6.2. - Erstellung von waldbezogenen Plänen auf betrieblicher Ebene
A200: -
A201: 15.1.1. - Erhaltung von ökologisch wertvollen/seltenen Waldflächen /-gesellschaften
A202: 15.2.1. - Erhaltung und Verbesserung der genetischen Ressourcen des Waldes
A203: -
A204: 16.01.1. - Unterstützung beim Aufbau & Betrieb operationeller Gruppen der EIP für lw. Produktivität & Nachhaltigkeit
A205: 16.02.1. - Unterstützung bei der Entwicklung neuer Erzeugnisse, Verfahren & Technologien der Land-, Ernährungs- & Forstwirtschaft
A206: 16.02.2. A) - Unterstützung bei der Entwicklung von innovativen Pilotprojekten im Tourismus - BMNT
A207: 16.02.2. B) - Unterstützung bei der Entwicklung von innovativen Pilotprojekten im Tourismus - Länder
A208: 16.03.1. A) - Zusammenarbeit von kleinen WirtschaftsteilnehmerInnen - Arbeitsabläufe, Ressourcennutzung und Tourismusdienstleistungen
A209: 16.03.1. A) - Zusammenarbeit von kleinen WirtschaftsteilnehmerInnen - Arbeitsabläufe, Ressourcennutzung und Tourismusdienstleistungen - BMNT
A210: 16.03.1. B) - Zusammenarbeit von kleinen WirtschaftsteilnehmerInnen - Arbeitsabläufe, Ressourcennutzung und Tourismusdienstleistungen - BMNT
A211: 16.03.1. C) - Zusammenarbeit von kleinen WirtschaftsteilnehmerInnen - Arbeitsabläufe, Ressourcennutzung und Tourismusdienstleistungen - Länder
A212: 16.03.2. - Zusammenarbeit von Kleinstunternehmen im ländlichen Raum
A213: 16.04.1. - Schaffung und Entwicklung von kurzen Versorgungsketten und lokalen Märkten sowie unterstützende Absatzförderung
A214: 16.05.1. - Stärkung der horizontalen und vertikalen Zusammenarbeit zwischen AkteurInnen im forst- und wasserwirtschaftlichen Sektor
A215: 16.05.2. A) - Stärkung der Zusammenarbeit von AkteurInnen und Strukturen zur Erhaltung des natürlichen Erbes & des Umweltschutzes - Naturschutz
A216: 16.05.2. A) - Stärkung der Zusammenarbeit von AkteurInnen und Strukturen zur Erhaltung des natürlichen Erbes & des Umweltschutzes - Naturschutz - Länder
A217: 16.05.2. B) - Stärkung der Zusammenarbeit von AkteurInnen und Strukturen zur Erhaltung des natürlichen Erbes & des Umweltschutzes - Umweltschutz
A218: 16.05.2. C) - Stärkung der Zusammenarbeit von AkteurInnen und Strukturen zur Erhaltung des natürlichen Erbes & des Umweltschutzes - Nationalparks
A219: 16.08.1. - Waldbezogene Pläne auf überbetrieblicher Ebene
A220: 16.09.1. - Förderung horizontaler & vertikaler Zusammenarbeit lw. & fw. AkteurInnen zur Schaffung & Entwicklung v. Sozialleistungen - BMNT
A221: 16.10.1. - Einrichtung und Betrieb von Clustern - BMNT
A222: 16.10.2. - Einrichtung und Betrieb von Netzwerken - BMNT
A223: 16.10.3. - Zusammenarbeit: Erzeugergemeinschaften /-organisationen, Genossenschaften und Branchenverbände - BMNT
A224: -
A225: 19.1.1. - Erstellung der lokalen Entwicklungsstrategie - Länder
A226: 19.1.1. - Erstellung der lokalen Entwicklungsstrategie
A227: 19.2.1. - Umsetzung der lokalen Entwicklungsstrategie - Länder
A228: 19.2.1. - Umsetzung der lokalen Entwicklungsstrategie
A229: 19.3.1. - Umsetzung von nationalen oder transnationalen Kooperationsprojekten - Länder
A230: 19.3.1. - Umsetzung von nationalen oder transnationalen Kooperationsprojekten
A231: 19.4.1. - Laufende Kosten des LAG-Managements und Sensibilisierung - Länder
A232: 19.4.1. - Laufende Kosten des LAG-Managements und Sensibilisierung
A233: -
A234: 20.1. - Technische Hilfe (außer Netzwerk)
A235: 20.2. - Technische Hilfe - Netzwerk

Sheet TABLE Fördergeber (hidden)
A1: Vorhabensart (alphabet. Sortiert) | B1: Fördergeber
A2: - | B2: -
A3: 15.1.1. - Erhaltung von ökologisch wertvollen/seltenen Waldflächen /-gesellschaften | B3: BMNT/LE1420/LD/EU
A4: 15.2.1. - Erhaltung und Verbesserung der genetischen Ressourcen des Waldes | B4: BMNT/LE1420/LD/EU
A5: 16.01.1. - Unterstützung beim Aufbau & Betrieb operationeller Gruppen der EIP für lw. Produktivität & Nachhaltigkeit | B5: BMNT/LE1420/LD/EU
A6: 16.02.1. - Unterstützung bei der Entwicklung neuer Erzeugnisse, Verfahren & Technologien der Land-, Ernährungs- & Forstwirtschaft | B6: BMNT/LE1420/LD/EU
A7: 16.02.2. A) - Unterstützung bei der Entwicklung von innovativen Pilotprojekten im Tourismus - BMNT | B7: BMNT/LE/EU
A8: 16.02.2. B) - Unterstützung bei der Entwicklung von innovativen Pilotprojekten im Tourismus - Länder | B8: LD/LE1420/EU
A9: 16.03.1. A) - Zusammenarbeit von kleinen WirtschaftsteilnehmerInnen - Arbeitsabläufe, Ressourcennutzung und Tourismusdienstleistungen | B9: BMNT/LE1420/LD/EU
A10: 16.03.1. A) - Zusammenarbeit von kleinen WirtschaftsteilnehmerInnen - Arbeitsabläufe, Ressourcennutzung und Tourismusdienstleistungen - BMNT | B10: BMNT/LE1420/EU
A11: 16.03.1. B) - Zusammenarbeit von kleinen WirtschaftsteilnehmerInnen - Arbeitsabläufe, Ressourcennutzung und Tourismusdienstleistungen - BMNT | B11: BMNT/LE/EU
A12: 16.03.1. C) - Zusammenarbeit von kleinen WirtschaftsteilnehmerInnen - Arbeitsabläufe, Ressourcennutzung und Tourismusdienstleistungen - Länder | B12: LD/LE1420/EU
A13: 16.03.2. - Zusammenarbeit von Kleinstunternehmen im ländlichen Raum | B13: BMDW/LE/EU
A14: 16.04.1. - Schaffung und Entwicklung von kurzen Versorgungsketten und lokalen Märkten sowie unterstützende Absatzförderung | B14: BMNT/LE1420/LD/EU
A15: 16.05.1. - Stärkung der horizontalen und vertikalen Zusammenarbeit zwischen AkteurInnen im forst- und wasserwirtschaftlichen Sektor | B15: BMNT/LE1420/LD/EU
A16: 16.05.2. A) - Stärkung der Zusammenarbeit von AkteurInnen und Strukturen zur Erhaltung des natürlichen Erbes & des Umweltschutzes - Naturschutz | B16: BMNT/LE1420/EU
A17: 16.05.2. A) - Stärkung der Zusammenarbeit von AkteurInnen und Strukturen zur Erhaltung des natürlichen Erbes & des Umweltschutzes - Naturschutz - Länder | B17: LD/LE1420/EU
A18: 16.05.2. B) - Stärkung der Zusammenarbeit von AkteurInnen und Strukturen zur Erhaltung des natürlichen Erbes & des Umweltschutzes - Umweltschutz | B18: BMNT/LE1420/EU
A19: 16.05.2. C) - Stärkung der Zusammenarbeit von AkteurInnen und Strukturen zur Erhaltung des natürlichen Erbes & des Umweltschutzes - Nationalparks | B19: BMNT/LE1420/EU
A20: 16.08.1. - Waldbezogene Pläne auf überbetrieblicher Ebene | B20: BMNT/LE1420/LD/EU
A21: 16.09.1. - Förderung horizontaler & vertikaler Zusammenarbeit lw. & fw. AkteurInnen zur Schaffung & Entwicklung v. Sozialleistungen - BMNT | B21: BMNT/LE1420/LD/EU
A22: 16.10.1. - Einrichtung und Betrieb von Clustern - BMNT | B22: BMNT/LE1420/LD/EU
A23: 16.10.2. - Einrichtung und Betrieb von Netzwerken - BMNT | B23: BMNT/LE1420/LD/EU
A24: 16.10.3. - Zusammenarbeit: Erzeugergemeinschaften /-organisationen, Genossenschaften und Branchenverbände - BMNT | B24: BMNT/LE1420/LD/EU
A25: 19.1.1. - Erstellung der lokalen Entwicklungsstrategie | B25: BMNT/LE1420/LD/LEADER/EU
A26: 19.1.1. - Erstellung der lokalen Entwicklungsstrategie - Länder | B26: LD/LE1420/LEADER/EU
A27: 19.2.1. - Umsetzung der lokalen Entwicklungsstrategie | B27: BMNT/LE1420/LD/LEADER/EU
A28: 19.2.1. - Umsetzung der lokalen Entwicklungsstrategie - Länder | B28: LD/LE1420/LEADER/EU
A29: 19.3.1. - Umsetzung von nationalen oder transnationalen Kooperationsprojekten | B29: BMNT/LE1420/LD/LEADER/EU
A30: 19.3.1. - Umsetzung von nationalen oder transnationalen Kooperationsprojekten - Länder | B30: LD/LE1420/LEADER/EU
A31: 19.4.1. - Laufende Kosten des LAG-Managements und Sensibilisierung | B31: BMNT/LE1420/LD/LEADER/EU
A32: 19.4.1. - Laufende Kosten des LAG-Managements und Sensibilisierung - Länder | B32: LD/LE1420/LEADER/EU
A33: 2.1.1. A) - Inanspruchnahme von Beratungsleistungen - Landwirtschaft | B33: BMNT/LE1420/LD/LEADER/EU
A34: 2.1.1. B) - Inanspruchnahme von Beratungsleistungen - Forstwirtschaft | B34: BMNT/LE1420/LD/EU
A35: 2.1.1. C) - Inanspruchnahme von Beratungsleistungen - KMU | B35: LD/LE1420/EU
A36: 2.3.1. - Ausbildung von BeraterInnen | B36: BMNT/LE1420/LD/EU
A37: 20.1. - Technische Hilfe (außer Netzwerk) | B37: BMNT/LE1420/LD/EU
A38: 20.2. - Technische Hilfe - Netzwerk | B38: BMNT/LE1420/LD/EU
A39: 3.1.1. - Teilnahme der BewirtschafterInnen landwirtschaftlicher Betriebe an Lebensmittelqualitätsregelungen | B39: BMNT/LE1420/LD/EU
A40: 3.2.1. - Informations- und Absatzförderungsmaßnahmen | B40: BMNT/LE1420/LD/EU
A41: 4.1.1. - Investitionen in die landwirtschaftliche Erzeugung | B41: BMNT/LE1420/LD/EU
A42: 4.2.1. A) - Verarbeitung, Vermarktung und Entwicklung landwirtschaftlicher Erzeugnisse (Bewilligung AWS) | B42: BMNT/LE1420/LD/EU
A43: 4.2.1. B) - Verarbeitung, Vermarktung und Entwicklung landwirtschaftlicher Erzeugnisse (Bewilligung Bundesländer) | B43: BMNT/LE1420/LD/EU
A44: 4.3.1. - Investitionen in überbetriebliche Bewässerungsinfrastruktur | B44: BMNT/LE1420/LD/EU
A45: 4.3.2. - Investitionen in die Infrastruktur für die Entwicklung, Modernisierung und Anpassung der Forstwirtschaft | B45: BMNT/LE1420/LD/EU
A46: 4.4.1. - Nichtproduktive Investitionen – Ökologische Verbesserung von Gewässern in landwirtschaftlich geprägten Regionen | B46: BMNT/LE1420/LD/EU
A47: 4.4.2. - Nichtproduktive Investitionen – Investitionen zur Stabilisierung von Rutschungen | B47: BMNT/LE1420/LD/EU
A48: 4.4.3. - Nichtproduktive Investitionen – Ökologische Agrarinfrastruktur zur Flurentwicklung | B48: BMNT/LE1420/LD/EU
A49: 6.1.1. - Existenzgründungsbeihilfen für JunglandwirtInnen | B49: BMNT/LE1420/LD/EU
A50: 6.4.1. - Diversifizierung hin zu nichtlandwirtschaftlichen Tätigkeiten | B50: BMNT/LE1420/LD/EU
A51: 6.4.2. - Diversifizierung lw. und fw. Betriebe durch Energie aus nachwachsenden Rohstoffen sowie Energiedienstleistungen | B51: BMNT/LE1420/LD/EU
A52: 6.4.3. - Photovoltaik in der Landwirtschaft | B52: BMNT/LE1420/EU
A53: 6.4.4. - Gründung von innovativen Kleinunternehmen im ländlichen Raum | B53: BMDW/LE/EU
A54: 6.4.5. - Förderung von Nahversorgungsbetrieben einschließlich gewerblicher Beherbergungs- und Gastronomiebetriebe | B54: LD/LE1420/EU
A55: 7.1.1. A) - Pläne und Entwicklungskonzepte zur Erhaltung des natürlichen Erbes - Naturschutz - Bund | B55: BMNT/LE1420/EU
A56: 7.1.1. A) - Pläne und Entwicklungskonzepte zur Erhaltung des natürlichen Erbes - Naturschutz - Länder | B56: LD/LE1420/EU
A57: 7.1.1. B) - Pläne und Entwicklungskonzepte zur Erhaltung des natürlichen Erbes - Nationalparks | B57: BMNT/LE1420/EU
A58: 7.1.2. - Pläne und Entwicklungskonzepte zur Dorferneuerung | B58: LD/LE1420/EU
A59: 7.1.3. - Lokale Agenda 21 - Bund | B59: BMNT/LE1420/EU
A60: 7.1.3. - Lokale Agenda 21 - Länder | B60: LD/LE1420/EU
A61: 7.2.1. - Ländliche Verkehrsinfrastruktur | B61: BMNT/LE1420/LD/EU
A62: 7.2.2. - Investitionen in erneuerbare Energien | B62: BMNT/LE1420/EU
A63: 7.2.3. - Umsetzung von Klima- und Energieprojekten auf lokaler Ebene | B63: BMNT/LE1420/EU
A64: 7.3.1. - Breitbandinfrastruktur in ländlichen Gebieten | B64: BMVIT/LE/EU
A65: 7.4.1. A) - Soziale Angelegenheiten - BMASK | B65: LD/LE1420/EU
A66: 7.4.1. B) - Soziale Angelegenheiten - BMG | B66: LD/LE1420/EU
A67: 7.4.2. - Klimafreundliche Mobilitätslösungen (klimaaktiv mobil) | B67: BMNT/LE1420/EU
A68: 7.5.1. A) - Investitionen in kleine touristische Infrastruktur - BMNT | B68: BMNT/LE/EU
A69: 7.5.1. B) - Investitionen in kleine touristische Infrastruktur - Forst | B69: LD/LE1420/EU
A70: 7.5.1. C) - Investitionen in kleine touristische Infrastruktur - Länder | B70: LD/LE1420/EU
A71: 7.6.1. A) - Studien und Investitionen zur Erhaltung, Wiederherstellung und Verbesserung des natürlichen Erbes - Naturschutz - Bund | B71: BMNT/LE1420/EU
A72: 7.6.1. A) - Studien und Investitionen zur Erhaltung, Wiederherstellung und Verbesserung des natürlichen Erbes - Naturschutz - Länder | B72: LD/LE1420/EU
A73: 7.6.1. B) - Studien und Investitionen zur Erhaltung, Wiederherstellung und Verbesserung des natürlichen Erbes - Nationalparks | B73: BMNT/LE1420/EU
A74: 7.6.1. C) - Studien und Investitionen zur Erhaltung, Wiederherstellung und Verbesserung des natürlichen Erbes - Forst | B74: BMNT/LE1420/EU
A75: 7.6.2. - Umsetzung von Plänen zur Dorferneuerung und Gemeindeentwicklung | B75: LD/LE1420/EU
A76: 7.6.3. - Erhaltung und Entwicklung der Kulturlandschaft | B76: BMNT/LE1420/LD/EU
A77: 7.6.4. - Überbetriebliche Maßnahmen für die Bereiche Wald und Schutz vor Naturgefahren | B77: BMNT/LE1420/LD/EU
A78: 7.6.5. - Stärkung der Potenziale des alpinen ländlichen Raums | B78: BMNT/LE1420/EU
A79: 8.1.1. - Aufforstung und Anlage von Wäldern | B79: BMNT/LE1420/LD/EU
A80: 8.4.1. - Vorbeugung von Schäden und Wiederherstellung von Wäldern nach Naturkatastrophen und Katastrophenereignissen - Forstschutz | B80: BMNT/LE1420/LD/EU
A81: 8.5.1. - Investitionen zur Stärkung von Resistenz und ökologischem Wert des Waldes - Öffentlicher Wert & Schutz vor Naturgefahren | B81: BMNT/LE1420/LD/EU
A82: 8.5.2. - Investitionen zur Stärkung von Resistenz und ökologischem Wert des Waldes - Genetische Ressourcen | B82: BMNT/LE1420/LD/EU
A83: 8.5.3. - Investitionen zur Stärkung des ökologischen Werts der Waldökosysteme - Wald-Ökologie-Programm | B83: BMNT/LE1420/LD/EU
A84: 8.6.1. - Investitionen in Forsttechniken, Verarbeitung, Mobilisierung und Vermarktung forstwirtschaftlicher Erzeugnisse | B84: BMNT/LE1420/LD/EU
A85: 8.6.2. - Erstellung von waldbezogenen Plänen auf betrieblicher Ebene | B85: BMNT/LE1420/LD/EU
A86: M 1 A) - Wissenstransfer und Informationsmaßnahmen in der Land- und Forstwirtschaft - Landwirtschaft | B86: BMNT/LE1420/LD/EU
A87: M 1 B) - Wissenstransfer und Informationsmaßnahmen in der Land- und Forstwirtschaft - Forstwirtschaft | B87: BMNT/LE1420/LD/EU

Sheet TEMPLATE Auswahl Belegaufst. (hidden)
A1: Zahlungsantrag - Stammdaten/Übersicht
E2: RL/AMA v469.11 / Feb. 2019
B3: Betriebs-/Klientennummer:
B5: Förderungswerber:
B7: Antragsnummer:
B9: Vorsteuerabzugsberechtigung: | C9: =C10 -> Nein
C10: =IF(D10=1,"Ja","Nein") -> Nein | D10: 2
B12: Genehmigter Zeitraum für | C12: Beginn | D12: Ende
B13: Kostenanerkennung:
B31: Buttons nur zur internen Verwendung der Bewilligenden Stelle
D37: U

Sheet Auswahl Belegaufstellungen (hidden)
A1: Zahlungsantrag - Stammdaten/Übersicht
E2: RL/AMA v469.11 / Feb. 2019
B3: Betriebs-/Klientennummer: | C3: =TRIM('Zahlungsantrag LEW14-20'!PaymAppl_ApplicantID) -> 
B5: Förderungswerber: | C5: =TRIM('Zahlungsantrag LEW14-20'!PaymAppl_ApplicantName) -> 
B7: Antragsnummer: | C7: =TRIM('Zahlungsantrag LEW14-20'!PaymAppl_ApplicationID) & 'Zahlungsantrag LEW14-20'!PaymAppl_PartialPaymTitle -> 
B9: Vorsteuerabzugsberechtigung: | C9: =TRIM('Zahlungsantrag LEW14-20'!PaymAppl_TaxDeduct) -> Ja
C10: =IF(D10=1,"Ja","Nein") -> Nein | D10: 2
B12: Genehmigter Zeitraum für | C12: Beginn | D12: Ende
B13: Kostenanerkennung: | C13: =IF(TRIM('Zahlungsantrag LEW14-20'!PaymAppl_SupportPeriodStart)="","",'Zahlungsantrag LEW14-20'!PaymAppl_SupportPeriodStart) ->  | D13: =IF(TRIM('Zahlungsantrag LEW14-20'!PaymAppl_SupportPeriodEnd)="","",'Zahlungsantrag LEW14-20'!PaymAppl_SupportPeriodEnd) -> 
B31: Buttons nur zur internen Verwendung der Bewilligenden Stelle
D37: U

Sheet Übersicht
A1: Übersicht
L2: RL/AMA v469.11 / Feb. 2019
A3: Betriebs-/Klientennummer: | C3: =TRIM('Auswahl Belegaufstellungen'!Stm_ApplicantID) -> 
A5: Förderungswerber: | C5: =TRIM('Auswahl Belegaufstellungen'!Stm_ApplicantName) -> 
A7: Antragsnummer: | C7: =TRIM('Auswahl Belegaufstellungen'!Stm_ApplicationID) -> 
A9: Vorsteuerabzugsberechtigung: | C9: ='Auswahl Belegaufstellungen'!Stm_TaxDeduct -> Ja
A11: Genehmigter Zeitraum für | D11: Beginn | E11: --- | F11: Ende
A12: Kostenanerkennung: | D12: =IF(TRIM('Auswahl Belegaufstellungen'!Stm_SupportPeriodStart)="","",'Auswahl Belegaufstellungen'!Stm_SupportPeriodStart) ->  | E12: --- | F12: =IF(TRIM('Auswahl Belegaufstellungen'!Stm_SupportPeriodEnd)="","",'Auswahl Belegaufstellungen'!Stm_SupportPeriodEnd) -> 
B14: Gruppierung nach: | C14: Teilprojekt
A16: Buttons zur internen Verwendung der Bewilligenden Stelle
A41: 255 | B41: 1023 | C41: 1 | D41: 1 | E41: Teilprojekt | F41: Fördergegenstand | G41: Teilprojekt | H41: Codierung / Fördergegenstand
A42: Gesamtsumme
A43: Tabellenblatt | B43: Kostenart | C43: Fördergegenstand | D43: Gesamtkosten brutto | E43: Gesamtkosten netto | F43: eingereichte Kosten | G43: verminderte Kosten nach VWK | H43: anrechenbare Kosten nach VWK | I43: verminderte Kosten nach VOK | J43: anrechenbare Kosten nach VOK | K43: Sanktions- relevante Kosten gemäß Art. 35 | L43: Einnahmen
B45: Summe:
B47: Gesamtsumme:
A48: Keine Belegaufstellungen verfügbar
A49: Tabellenblatt | B49: Kostenart | C49: Fördergegenstand | D49: Gesamtkosten brutto | E49: Gesamtkosten netto | F49: eingereichte Kosten | G49: verminderte Kosten nach VWK | H49: anrechenbare Kosten nach VWK | I49: verminderte Kosten nach VOK | J49: anrechenbare Kosten nach VOK | K49: Sanktions- relevante Kosten gemäß Art. 35 | L49: Einnahmen
B50: Summe:
A52: Gesamtsumme
A53: Tabellenblatt | B53: Kostenart | C53: Fördergegenstand | D53: Gesamtkosten brutto | E53: Gesamtkosten netto | F53: eingereichte Kosten | G53: verminderte Kosten nach VWK | H53: anrechenbare Kosten nach VWK | I53: verminderte Kosten nach VOK | J53: anrechenbare Kosten nach VOK | K53: Sanktions- relevante Kosten gemäß Art. 35 | L53: Einnahmen
B54: Gesamtsumme:

Sheet TEMPLATE Übersicht (hidden)
A1: Übersicht
L2: RL/AMA v469.11 / Feb. 2019
A3: Betriebs-/Klientennummer: | C3: =TRIM(Stm_ApplicantID) -> 
A5: Förderungswerber: | C5: =TRIM(Stm_ApplicantName) -> 
A7: Antragsnummer: | C7: =TRIM(Stm_ApplicationID) -> 
A9: Vorsteuerabzugsberechtigung: | C9: =Stm_TaxDeduct -> Nein
A11: Genehmigter Zeitraum für | D11: Beginn | E11: --- | F11: Ende
A12: Kostenanerkennung: | D12: =IF(TRIM(Stm_SupportPeriodStart)="","",Stm_SupportPeriodStart) ->  | E12: --- | F12: =IF(TRIM(Stm_SupportPeriodEnd)="","",Stm_SupportPeriodEnd) -> 
B14: Gruppierung nach: | C14: Fördergegenstand
A16: Buttons zur internen Verwendung der Bewilligenden Stelle
A41: 31 | B41: 1023 | C41: 1 | D41: 1 | F41: Fördergegenstand | G41: Teilprojekt | H41: Codierung / Fördergegenstand
A42: Gesamtsumme
A43: Tabellenblatt | B43: Kostenart | C43: Fördergegenstand | D43: Gesamtkosten brutto | E43: Gesamtkosten netto | F43: eingereichte Kosten | G43: verminderte Kosten nach VWK | H43: anrechenbare Kosten nach VWK | I43: verminderte Kosten nach VOK | J43: anrechenbare Kosten nach VOK | K43: Sanktions- relevante Kosten gemäß Art. 35 | L43: Einnahmen
B45: Summe:
B47: Gesamtsumme:

Sheet TEMPLATE Invest & Sachkosten (hidden)
A1: : | B1: Investkosten | C1: Zahlungsantrag - Belegaufstellung für Investitionskosten
A2: : | B2: Sachkosten | C2: Zahlungsantrag - Belegaufstellung für Sachkosten
A3: : | B3: Invest- & Sachkosten | C3: Zahlungsantrag - Belegaufstellung für Investitions- und Sachkosten
A4: UBVbv | R4: RL/AMA v469.11 / Feb. 2019
A5: UBVbv | C5: Betriebs-/Klientennummer:
A6: UBVbv
A7: UBVbv | C7: Förderungswerber:
A8: UBVbv
A9: UBVbv | C9: Antragsnummer:
A10: UBVbv
A11: UBVbv | C11: Fördergegenstand:
A13: UBVbv
A14: UBVbv | C14: Vorsteuerabzugsberechtigung: | E14: =E15 -> Ja | H14: Nein
E15: =IF(F15=1,"Ja","Nein") -> Ja | F15: 1
A16: UBVbv
A17: UBVbv | C17: Genehmigter Zeitraum für | E17: Beginn | F17: Ende
A18: UBVbv | C18: Kostenanerkennung:
A19: UBVbv
A20: UBVbv | C20: Buttons zur internen Verwendung der Bewilligenden Stelle
A21: UBVbv
A22: UBVbv
A23: - | B23: - | C23: UBVbv | D23: UBVbv | E23: UBVbv | F23: UBVbv | G23: UBV | H23: UBVbv | I23: UBV | J23: UBVbv | L23: UBVbv | N23: UBV | O23: UBV | P23: UBV | Q23: UBV | R23: UBVbv | S23: BV | T23: BV | U23: BV | V23: BV | W23: BV | X23: BV | Y23: BV | Z23: BV | AA23: BVbv | AB23: BVbv | AC23: V | AD23: V | AE23: V | AF23: V | AG23: V | AH23: V | AI23: V | AJ23: V | AK23: Vv | AL23: Vv | AM23: BV | AN23: BV | AO23: BVbv | AP23: BVbv
A24: UBVbv | C24: Belege | S24: von der Bewilligenden Stelle im Rahmen der VWK auszufüllen | AC24: von VOK auszufüllen | AD24: von der Bewilligenden Stelle auszufüllen (im Rahmen einer VOK) | AM24: von der Bewilligenden Stelle auszufüllen
A25: UBVbv | B25: Head | C25: lfd. Nr. | D25: Belegnr. / Rechnungsnummer | E25: Belegdatum | F25: Firma bzw. Name | G25: Bezeichnung (Ware, Leistung) | H25: Zuordnung zu Teilprojekt (falls erforderlich) | I25: Datum Saldierung (Zahlungs- datum) | J25: Belegbetrag brutto | K25: MwSt. Satz | L25: Belegbetrag netto | M25: Belegbetrag (interne Rechenbasis) | N25: davon nicht anrechenbare Kosten | O25: nicht anrechenbare Skonti (%) | P25: anrechenbare Kosten | Q25: Abzüge in % | R25: eingereichte Kosten | S25: Codierung (optional) | T25: nicht anrechenbare zu vermindernde Kosten durch VWK | U25: nicht anrechenbare zu vermindernde Skonti (%) durch VWK | V25: verminderte Abzüge in % nach VWK | W25: verminderte Kosten nach VWK | X25: nicht anrechenbare zu sanktionierende Kosten durch VWK | Y25: nicht anrechenbare zu sanktionierende Skonti (%) durch VWK | Z25: sanktionierte Abzüge in % nach VWK | AA25: anrechenbare Kosten nach VWK | AB25: Anmerkung zur VWK | AC25: Feststellungen der VOK | AD25: nicht anrechenbare zu vermindernde Kosten durch VOK | AE25: nicht anrechenbare zu vermindernde Skonti (%) durch VOK | AF25: verminderte Abzüge in % nach VOK | AG25: verminderte Kosten nach VOK | AH25: nicht anrechenbare zu sanktionierende Kosten durch VOK | AI25: nicht anrechenbare zu sanktionierende Skonti (%) durch VOK | AJ25: sanktionierte Abzüge in % nach VOK | AK25: anrechenbare Kosten nach VOK | AL25: Anmerkung zur VOK | AM25: ermittelte Kosten gemäß Art. 35 | AN25: Sanktion in % gemäß Art. 35 | AO25: sanktionsrelevante Kosten gemäß Art. 35 | AP25: Anmerkung zur Sanktion gemäß Art. 35 (VO 640/2014)
A26: UBVbv | B26: Receipt | C26: 1 | K26: 0.2 | L26: =IF(OR(ISBLANK(J26),ISBLANK(K26)),0,ROUND(J26 / (1+K26),2)) -> 0 | M26: =IF($E$14="Nein",J26,L26) -> 0 | P26: =ROUND((M26-N26)*(1-O26),2) -> 0 | R26: =ROUND(P26*(1-Q26),2) -> 0 | W26: =ROUND((M26-N26-T26)*(1-O26-U26)*(1-Q26-V26),2) -> 0 | AA26: =ROUND((M26-N26-T26-X26)*(1-O26-U26-Y26)*(1-Q26-V26-Z26),2) -> 0 | AG26: =ROUND((M26-N26-T26-X26-AD26)*(1-O26-U26-Y26-AE26)*(1-Q26-V26-Z26-AF26),2) -> 0 | AK26: =ROUND((M26-N26-T26-X26-AD26-AH26)*(1-O26-U26-Y26-AE26-AI26)*(1-Q26-V26-Z26-AF26-AJ26),2) -> 0 | AM26: =AK26 -> 0 | AO26: =AM26*AN26 -> 0
A27: UBVbv | B27: Receipt | C27: =C26+1 -> 2 | K27: 0.2 | L27: 0 | M27: 0 | P27: 0 | R27: 0 | W27: 0 | AA27: 0 | AG27: 0 | AK27: 0 | AM27: 0 | AO27: 0
A28: UBVbv | B28: Receipt | C28: 3 | K28: 0.2 | L28: 0 | M28: 0 | P28: 0 | R28: 0 | W28: 0 | AA28: 0 | AG28: 0 | AK28: 0 | AM28: 0 | AO28: 0
A29: UBVbv | B29: Receipt | C29: 4 | K29: 0.2 | L29: 0 | M29: 0 | P29: 0 | R29: 0 | W29: 0 | AA29: 0 | AG29: 0 | AK29: 0 | AM29: 0 | AO29: 0
A30: UBVbv | B30: Receipt | C30: 5 | K30: 0.2 | L30: 0 | M30: 0 | P30: 0 | R30: 0 | W30: 0 | AA30: 0 | AG30: 0 | AK30: 0 | AM30: 0 | AO30: 0
A31: UBVbv | B31: Receipt | C31: 6 | K31: 0.2 | L31: 0 | M31: 0 | P31: 0 | R31: 0 | W31: 0 | AA31: 0 | AG31: 0 | AK31: 0 | AM31: 0 | AO31: 0
A32: UBVbv | B32: Receipt | C32: 7 | K32: 0.2 | L32: 0 | M32: 0 | P32: 0 | R32: 0 | W32: 0 | AA32: 0 | AG32: 0 | AK32: 0 | AM32: 0 | AO32: 0
M33: 0 | P33: 0 | W33: 0 | AA33: 0 | AG33: 0 | AK33: 0
A34: UBVbv | B34: Receipt | C34: =C33+1 -> 1 | K34: 0.2 | L34: =IF(OR(ISBLANK(J34),ISBLANK(K34)),0,ROUND(J34 / (1+K34),2)) -> 0 | M34: 0 | P34: 0 | R34: =ROUND(P34*(1-Q34),2) -> 0 | W34: 0 | AA34: 0 | AG34: 0 | AK34: 0 | AM34: =AK34 -> 0 | AO34: =AM34*AN34 -> 0
A35: - | B35: Tail | C35: =C34+1 -> 2 | D35: -- Do not Erase -- | E35: -- Do not Erase -- | F35: -- Do not Erase -- | G35: -- Do not Erase -- | K35: 0.2 | L35: =IF(OR(ISBLANK(J35),ISBLANK(K35)),0,J35 / (1+K35)) -> 0 | M35: 0 | P35: 0 | R35: =P35*(1-Q35) -> 0 | W35: 0 | AA35: 0 | AG35: 0 | AK35: 0 | AM35: =AK35 -> 0 | AO35: =AM35*AN35 -> 0
A36: UBVbv | I36: Gesamtsumme: | J36: =ROUND(SUM(J26:J35),2) -> 0 | L36: =ROUND(SUM(L26:L35),2) -> 0 | P36: =SUM(P26:P35) -> 0 | R36: =SUM(R26:R35) -> 0 | T36: =ROUND(SUM(T26:T35),2) -> 0 | W36: =SUM(W26:W35) -> 0 | X36: =ROUND(SUM(X26:X35),2) -> 0 | AA36: =SUM(AA26:AA35) -> 0 | AD36: =ROUND(SUM(AD26:AD35),2) -> 0 | AG36: =SUM(AG26:AG35) -> 0 | AH36: =ROUND(SUM(AH26:AH35),2) -> 0 | AK36: =SUM(AK26:AK35) -> 0 | AO36: =SUM(AO26:AO35) -> 0
A37: U
A38: U
A39: U
A40: U
A41: U
A42: U | D42: Ort, Datum | H42: Unterschrift oder firmenmäßige Zeichnung
A43: U

Sheet TEMPLATE Standardkosten (hidden)
A1: UBVbv | C1: Zahlungsantrag - Standardkosten
A2: UBVbv | N2: RL/AMA v469.11 / Feb. 2019
A3: UBVbv | C3: Betriebs-/Klientennummer:
A4: UBVbv
A5: UBVbv | C5: Förderungswerber:
A6: UBVbv
A7: UBVbv | C7: Antragsnummer:
A8: UBVbv
A9: UBVbv | C9: Fördergegenstand:
A11: UBVbv
A12: UBVbv | C12: Vorsteuerabzugsberechtigung: | F12: =F13 -> Ja
F13: =IF(G13=1,"Ja","Nein") -> Ja | G13: 1
A14: UBVbv
A15: UBVbv | C15: Genehmigter Zeitraum für | F15: Beginn | G15: Ende
A16: UBVbv | C16: Kostenanerkennung:
A17: UBVbv
A18: UBVbv | C18: Buttons zur internen Verwendung der Bewilligenden Stelle
A19: UBVbv
A20: UBVbv
A21: - | B21: - | C21: UBVbv | D21: UBVbv | E21: UBV | F21: UBVbv | G21: UBVbv | H21: UBVbv | I21: UBV | J21: UBV | K21: UBV | L21: UBV | M21: UBVbv | N21: UBV | O21: BV | P21: BV | Q21: BV | R21: BV | S21: BV | T21: BV | U21: BV | V21: BV | W21: BVbv | X21: BVbv | Y21: Vv | Z21: V | AA21: V | AB21: V | AC21: V | AD21: V | AE21: V | AF21: V | AG21: Vv | AH21: Vv | AI21: BV | AJ21: BV | AK21: BVbv | AL21: BVbv
A22: UBVbv | C22: Belege | O22: von der Bewilligenden Stelle im Rahmen der VWK auszufüllen | Y22: von VOK auszufüllen | Z22: von der Bewilligenden Stelle auszufüllen (im Rahmen einer VOK) | AI22: von der Bewilligenden Stelle auszufüllen
A23: UBVbv | B23: Head | C23: lfd. Nr. | D23: Datum | E23: Plausibilisierungsunterlage für Menge bzw €/ Einheit (BelegNr./ RechnungsNr.) (Nicht verpflichtend auszufüllen) | F23: Bezeichnung der Ware/ Leistung (lt. Beleg/Rechnung) (Nicht verpflichtend auszufüllen) | G23: Anmerkungen zur Plausibilisierungsunterlage (Nicht verpflichtend auszufüllen) | H23: Zuordnung zu Teilprojekt (falls erforderlich) | I23: Einheit (z.B. Stunde, Stück, kg,...) | J23: Menge | K23: € / Einheit | L23: Kosten | M23: Abzüge in % | N23: eingereichte Kosten | O23: Codierung (optional) | P23: nicht anrechenbare zu vermindernde Menge durch VWK | Q23: nicht anrechenbarer zu vermindernder Einheitssatz durch VWK | R23: nicht anrechenbare zu vermindernde Abzüge in % durch VWK | S23: verminderte Kosten nach VWK | T23: nicht anrechenbare zu sanktionierende Menge durch VWK | U23: nicht anrechenbarer zu sanktionierender Einheitskostensatz durch VWK | V23: nicht anrechenbare zu sanktionierende Abzüge in % durch VWK | W23: anrechenbare Kosten nach VWK | X23: Anmerkung zur VWK | Y23: Feststellungen der VOK | Z23: nicht anrechenbare zu vermindernde Menge durch VOK | AA23: nicht anrechenbarer zu vermindernder Einheitssatz durch VOK | AB23: nicht anrechenbare zu vermindernde Abzüge in % durch VOK | AC23: verminderte Kosten nach VOK | AD23: nicht anrechenbare zu sanktionierende Menge durch VOK | AE23: nicht anrechenbarer zu sanktionierender Einheitskostensatz durch VOK | AF23: nicht anrechenbare zu sanktionierende Abzüge in % durch VOK | AG23: anrechenbare Kosten nach VOK | AH23: Anmerkung zur VOK | AI23: ermittelte Kosten gemäß Art. 35 | AJ23: Sanktion in % gemäß Art. 35 | AK23: sanktionsrelevante Kosten gemäß Art. 35 | AL23: Anmerkung zur Sanktion gemäß Art. 35 (VO 640/2014)
A24: UBVbv | B24: Receipt | C24: 1 | L24: =ROUND(J24*K24,2) -> 0 | N24: =ROUND(L24*(1-M24),2) -> 0 | S24: =ROUND((J24-P24)*(K24-Q24)*(1-M24-R24),2) -> 0 | W24: =ROUND((J24-P24-T24)*(K24-Q24-U24)*(1-M24-R24-V24),2) -> 0 | AC24: =ROUND((J24-P24-T24-Z24)*(K24-Q24-U24-AA24)*(1-M24-R24-V24-AB24),2) -> 0 | AG24: =ROUND((J24-P24-T24-Z24-AD24)*(K24-Q24-U24-AA24-AE24)*(1-M24-R24-V24-AB24-AF24),2) -> 0 | AI24: =AG24 -> 0 | AK24: =AI24*AJ24 -> 0
A25: UBVbv | B25: Receipt | C25: =C24+1 -> 2 | L25: 0 | N25: 0 | S25: 0 | W25: 0 | AC25: 0 | AG25: 0 | AI25: 0 | AK25: 0
A26: UBVbv | B26: Receipt | C26: =C25+1 -> 3 | L26: 0 | N26: 0 | S26: 0 | W26: 0 | AC26: 0 | AG26: 0 | AI26: 0 | AK26: 0
A27: UBVbv | B27: Receipt | C27: =C26+1 -> 4 | L27: 0 | N27: 0 | S27: 0 | W27: 0 | AC27: 0 | AG27: 0 | AI27: 0 | AK27: 0
A28: UBVbv | B28: Receipt | C28: =C27+1 -> 5 | L28: 0 | N28: 0 | S28: 0 | W28: 0 | AC28: 0 | AG28: 0 | AI28: 0 | AK28: 0
A29: UBVbv | B29: Receipt | C29: =C28+1 -> 6 | L29: 0 | N29: 0 | S29: 0 | W29: 0 | AC29: 0 | AG29: 0 | AI29: 0 | AK29: 0
A31: UBVbv | B31: Receipt | C31: =C30+1 -> 1 | L31: =ROUND(J31*K31,2) -> 0 | N31: =ROUND(L31*(1-M31),2) -> 0 | S31: =ROUND((J31-P31)*(K31-Q31)*(1-M31-R31),2) -> 0 | W31: =ROUND((J31-P31-T31)*(K31-Q31-U31)*(1-M31-R31-V31),2) -> 0 | AC31: =ROUND((J31-P31-T31-Z31)*(K31-Q31-U31-AA31)*(1-M31-R31-V31-AB31),2) -> 0 | AG31: =ROUND((J31-P31-T31-Z31-AD31)*(K31-Q31-U31-AA31-AE31)*(1-M31-R31-V31-AB31-AF31),2) -> 0 | AI31: =AG31 -> 0 | AK31: =AI31*AJ31 -> 0
A32: - | B32: Tail | C32: =C31+1 -> 2 | F32: -- Do NOT Erase Gray Lines -- | L32: =J32*K32 -> 0 | N32: =L32*(1-M32) -> 0 | S32: =(J32-P32)*(K32-Q32)*(1-M32-R32) -> 0 | W32: =(J32-P32-T32)*(K32-Q32-U32)*(1-M32-R32-V32) -> 0 | AC32: =ROUND((J32-P32-T32-Z32)*(K32-Q32-U32-AA32)*(1-M32-R32-V32-AB32),2) -> 0 | AG32: =(J32-P32-T32-Z32-AD32)*(K32-Q32-U32-AA32-AE32)*(1-M32-R32-V32-AB32-AF32) -> 0 | AI32: =AG32 -> 0 | AK32: =AI32*AJ32 -> 0
A33: UBVbv | K33: Gesamtsumme: | L33: =SUM(L24:L32) -> 0 | N33: =SUM(N24:N32) -> 0 | S33: =SUM(S24:S32) -> 0 | W33: =SUM(W24:W32) -> 0 | AC33: =SUM(AC24:AC32) -> 0 | AG33: =SUM(AG24:AG32) -> 0 | AK33: =SUM(AK24:AK32) -> 0
A34: U
A35: U
A36: U | C36: Ich bestätige hiermit als Förderungswerber die Richtigkeit der Angaben
A37: U
A38: U
A39: U
A40: U | C40: Ort, Datum | G40: Unterschrift oder firmenmäßige Zeichnung

Sheet TEMPLATE Unbare Sachleistungen (hidden)
A1: UBVbv | C1: Zahlungsantrag - Belegaufstellung unbare Eigenleistungen (=unbare Sachleistungen)
A2: UBVbv | M2: RL/AMA v469.11 / Feb. 2019
A3: UBVbv | C3: Betriebs-/Klientennummer:
A4: UBVbv
A5: UBVbv | C5: Förderungswerber:
A6: UBVbv
A7: UBVbv | C7: Antragsnummer:
A8: UBVbv
A9: UBVbv | C9: Fördergegenstand:
A11: UBVbv
A12: UBVbv | C12: Vorsteuerabzugsberechtigung: | F12: =F13 -> Ja
F13: =IF(G13=1,"Ja","Nein") -> Ja | G13: 1
A14: UBVbv
A15: UBVbv | C15: Genehmigter Zeitraum für | F15: Beginn | G15: Ende
A16: UBVbv | C16: Kostenanerkennung:
A17: UBVbv
A18: UBVbv | C18: Buttons zur internen Verwendung der Bewilligenden Stelle
A19: UBVbv
A20: UBVbv
A21: UBVbv | C21: Leistungserbringer
A22: UBVbv | B22: Head | C22: Name des Leistungserbringers | F22: Verhältnis zum Förderungswerber* | G22: Unterschrift**
A23: UBVbv | B23: Worker
A24: UBVbv | B24: Worker
A25: UBVbv | B25: Worker
A26: UBVbv | B26: Worker
A27: UBVbv | B27: Worker
A29: UBVbv | B29: Worker
A30: - | B30: Tail | C30: -- Do not Erase --
A31: UBVbv
A32: UBVbv | C32: *Zum Beispiel: Verwandtschaftsverhältnis (Eltern, Geschwister, etc.), Teil des Förderungswerbers (z.B. Vereinsmitglied, Genossenschaftsmitglied, Mitglied der Personengemeinschaft etc.)
A33: UBVbv | C33: **Ich (Leistungserbringer) bestätige hiermit, die unten aufgelistete Tätigkeiten für den Förderungswerber durchgeführt zu haben:
A34: UBVbv
A35: - | B35: - | C35: UBVbv | D35: UBV | E35: UBVbv | F35: UBVbv | G35: UBVbv | H35: UBVbv | I35: UBV | J35: UBV | K35: UBV | L35: UBV | M35: UBVbv | N35: BV | O35: BV | P35: BV | Q35: BV | R35: BV | S35: BV | T35: BV | U35: BV | V35: BVbv | W35: BVbv | X35: V | Y35: V | Z35: V | AA35: V | AB35: V | AC35: V | AD35: V | AE35: V | AF35: Vv | AG35: Vv | AH35: BV | AI35: BV | AJ35: BVbv | AK35: BVbv
A36: UBVbv | C36: Belege | N36: von der Bewilligenden Stelle im Rahmen der VWK auszufüllen | X36: von VOK auszufüllen | Y36: von der Bewilligenden Stelle auszufüllen (im Rahmen einer VOK) | AH36: von der Bewilligenden Stelle auszufüllen
A37: UBVbv | B37: Head | C37: lfd. Nr. | D37: Datum | E37: Leistungserbringer | F37: Art der Leistung / Tätigkeit bzw. eingebrachte Sachleistung | G37: Zuordnung zu Teilprojekt (falls erforderlich) | H37: Einheit (z.B. Stunde, Stück, kg,...) | I37: Menge | J37: beantragter Stunden- / Kostensatz | K37: berechnete Kosten der Eigenleistung | L37: Abzüge in % | M37: eingereichte Kosten | N37: Codierung (optional) | O37: nicht anrechenbare zu vermindernde Menge durch VWK | P37: nicht anrechenbarer zu vermindernder Einheitssatz durch VWK | Q37: nicht anrechenbare zu vermindernde Abzüge in % durch VWK | R37: verminderte Kosten nach VWK | S37: nicht anrechenbare zu sanktionierende Menge durch VWK | T37: nicht anrechenbarer zu sanktionierender Einheitskostensatz durch VWK | U37: nicht anrechenbare zu sanktionierende Abzüge in % durch VWK | V37: anrechenbare Kosten nach VWK | W37: Anmerkung zur VWK | X37: Feststellungen der VOK | Y37: nicht anrechenbare zu vermindernde Menge durch VOK | Z37: nicht anrechenbarer zu vermindernder Einheitssatz durch VOK | AA37: nicht anrechenbare zu vermindernde Abzüge in % durch VOK | AB37: verminderte Kosten nach VOK | AC37: nicht anrechenbare zu sanktionierende Menge durch VOK | AD37: nicht anrechenbarer zu sanktionierender Einheitskostensatz durch VOK | AE37: nicht anrechenbare zu sanktionierende Abzüge in % durch VOK | AF37: anrechenbare Kosten nach VOK | AG37: Anmerkung zur VOK | AH37: ermittelte Kosten gemäß Art. 35 | AI37: Sanktion in % gemäß Art. 35 | AJ37: sanktionsrelevante Kosten gemäß Art. 35 | AK37: Anmerkung zur Sanktion gemäß Art. 35 (VO 640/2014)
A38: UBVbv | B38: Receipt | C38: 1 | K38: =ROUND(I38*J38,2) -> 0 | M38: =ROUND(K38*(1-L38),2) -> 0 | R38: =ROUND((I38-O38)*(J38-P38)*(1-L38-Q38),2) -> 0 | V38: =ROUND((I38-O38-S38)*(J38-P38-T38)*(1-L38-Q38-U38),2) -> 0 | AB38: =ROUND((I38-O38-S38-Y38)*(J38-P38-T38-Z38)*(1-L38-Q38-U38-AA38),2) -> 0 | AF38: =ROUND((I38-O38-S38-Y38-AC38)*(J38-P38-T38-Z38-AD38)*(1-L38-Q38-U38-AA38-AE38),2) -> 0 | AH38: =AF38 -> 0 | AJ38: =AH38*AI38 -> 0
A39: UBVbv | B39: Receipt | C39: =C38+1 -> 2 | K39: 0 | M39: 0 | R39: 0 | V39: 0 | AB39: 0 | AF39: 0 | AH39: 0 | AJ39: 0
A40: UBVbv | B40: Receipt | C40: 3 | K40: 0 | M40: 0 | R40: 0 | V40: 0 | AB40: 0 | AF40: 0 | AH40: 0 | AJ40: 0
A41: UBVbv | B41: Receipt | C41: 4 | K41: 0 | M41: 0 | R41: 0 | V41: 0 | AB41: 0 | AF41: 0 | AH41: 0 | AJ41: 0
A42: UBVbv | B42: Receipt | C42: 5 | K42: 0 | M42: 0 | R42: 0 | V42: 0 | AB42: 0 | AF42: 0 | AH42: 0 | AJ42: 0
A43: UBVbv | B43: Receipt | C43: 6 | K43: 0 | M43: 0 | R43: 0 | V43: 0 | AB43: 0 | AF43: 0 | AH43: 0 | AJ43: 0
A44: UBVbv | B44: Receipt | C44: 7 | K44: 0 | M44: 0 | R44: 0 | V44: 0 | AB44: 0 | AF44: 0 | AH44: 0 | AJ44: 0
A46: UBVbv | B46: Receipt | C46: =C45+1 -> 1 | K46: =ROUND(I46*J46,2) -> 0 | M46: =ROUND(K46*(1-L46),2) -> 0 | R46: =ROUND((I46-O46)*(J46-P46)*(1-L46-Q46),2) -> 0 | V46: =ROUND((I46-O46-S46)*(J46-P46-T46)*(1-L46-Q46-U46),2) -> 0 | AB46: =ROUND((I46-O46-S46-Y46)*(J46-P46-T46-Z46)*(1-L46-Q46-U46-AA46),2) -> 0 | AF46: =ROUND((I46-O46-S46-Y46-AC46)*(J46-P46-T46-Z46-AD46)*(1-L46-Q46-U46-AA46-AE46),2) -> 0 | AH46: =AF45 -> 0 | AJ46: =AH46*AI46 -> 0
A47: - | B47: Tail | C47: =C46+1 -> 2 | E47: -- Do Not Erase -- | K47: =I47*J47 -> 0 | M47: =K47*(1-L47) -> 0 | R47: =(I47-O47)*(J47-P47)*(1-L47-Q47) -> 0 | V47: =(I47-O47-S47)*(J47-P47-T47)*(1-L47-Q47-U47) -> 0 | AB47: =ROUND((I47-O47-S47-Y47)*(J47-P47-T47-Z47)*(1-L47-Q47-U47-AA47),2) -> 0 | AF47: =(I47-O47-S47-Y47-AC47)*(J47-P47-T47-Z47-AD47)*(1-L47-Q47-U47-AA47-AE47) -> 0 | AH47: =AF46 -> 0 | AJ47: =AH47*AI47 -> 0
A48: UBVbv | J48: Gesamtsumme: | K48: =SUM(K38:K47) -> 0 | M48: =SUM(M38:M47) -> 0 | R48: =SUM(R38:R47) -> 0 | V48: =SUM(V38:V47) -> 0 | AB48: =SUM(AB38:AB47) -> 0 | AF48: =SUM(AF38:AF47) -> 0 | AJ48: =SUM(AJ38:AJ47) -> 0
A49: U
A50: U
A51: U | C51: Ich bestätige hiermit als Förderungswerber die Richtigkeit der Angaben
A52: U
A53: U
A54: U
A55: U | C55: Ort, Datum | G55: Unterschrift oder firmenmäßige Zeichnung
A56: U

Sheet TEMPLATE Personalkosten (hidden)
K1: RL/AMA v469.11 / Feb. 2019
A2: Zahlungsantrag - Belegaufstellung Personalkosten
A3: ="inkl. Obergrenzen für " &D17 -> inkl. Obergrenzen für 2019
A5: Kurzbezeichung des Vorhabens | D5: X
A7: Betriebs-/Klientennummer | D7: X
A9: Förderungswerber | D9: X
A11: Antragsnummer | D11: X
A13: Fördergegenstand | D13: X
A14: Fördergegenstand | D14: X
A16: Bitte wählen Sie ein Abrechungsmodell: | D16: D
C17: Ja | D17: ='TABLE Gehaltsgrenzen'!A1 -> 2019
C18: Nein | D18: 33553408
C19: No | D19: D
D23: B
D27: A
D31: C
A34: Personalkostenabrechnung auf Ist-Kosten Basis (Stundensatzermittlung)
A35: Personalkostenabrechnung auf Basis von standardisierten Einheitkosten (Lohnnebenkosten auf Ist-Basis)
A36: Personalkostenabrechung auf Ist-Kosten-Basis (Mitarbeiter ist für einen bestimmten Zeitraum zu 100% dem Projekt zuordenbar)
A37: Personalkostenabrechnung mit standardisierten Einheitskosten (%-Zuschlag für Lohnnebenkosten)
B38: Type | C38: Valid for | D38: Visible for
A39: MitarbeiterIn (Name) | B39: In | C39: ABCD | D39: ABCD | E39: Name eintragen | F39: Shadow Copy
A40: Jahr für die Berechnung des Stundensatzes (JJJJ) | B40: In | C40: ABCD | D40: ABCD | E40: 2016 | F40: 2016
A41: Beginn Zeitraum für die Berechnung des Stundensatzes (TT.MM) | B41: In | C41: ABCD | D41: ABCD | E41: 2017-01-01 | F41: =E41 -> 2017-01-01
A42: Ende Zeitraum für die Berechung des Stundensatzes (TT.MM) | B42: In | C42: ABCD | D42: ABCD | E42: 2017-12-31 | F42: =E42 -> 2017-12-31
A43: Volles Datums des Beginns des Zeitraums zur Stundensatzberechnung (Tagesberechnung) | B43: Calc | C43: ABCD | D43: - | E43: =DATE(E40,MONTH(E41),DAY(E41)) -> 2016-01-01 | F43: =DATE(F40,MONTH(F41),DAY(F41)) -> 2016-01-01
A44: Volles Datum des Endes der Zeitraums zu Stundensatzberechnung (Tagesberechnung) | B44: Calc | C44: ABCD | D44: - | E44: =DATE(E40,MONTH(E42),DAY(E42)) -> 2016-12-31 | F44: =DATE(F40,MONTH(F42),DAY(F42)) -> 2016-12-31
A45: Beginn des Zeitraums zur Stundensatzberechnung im Kalendermonat (Tagesberechnung) | B45: Calc | C45: ABCD | D45: - | E45: =IF(AND(MONTH(E43)=2,DAY(E43)>=28),30,MIN(DAY(E43),30)) -> 1 | F45: =IF(AND(MONTH(F43)=2,DAY(F43)>=28),30,MIN(DAY(F43),30)) -> 1
A46: Ende des Zeitraums zur Stundensatzberechnung im Kalendermonat (Tagesberechnung) | B46: Calc | C46: ABCD | D46: - | E46: =IF(AND(MONTH(E44)=2,DAY(E44)>=28),30,MIN(DAY(E44),30)) -> 30 | F46: =IF(AND(MONTH(F44)=2,DAY(F44)>=28),30,MIN(DAY(F44),30)) -> 30
A47: Dauer des Zeitraums zur Stundensatzberechnung in Tagen (Tagesberechnung) | B47: Calc | C47: ABCD | D47: - | E47: =IF(E44-E43<=28,MAX(0,E44-E43+1),360*(YEAR(E44)-YEAR(E43)) + 30*(MONTH(E44)-MONTH(E43)) + (E46-E45) + 1) -> 360 | F47: =IF(F44-F43<=28,MAX(0,F44-F43+1),360*(YEAR(F44)-YEAR(F43)) + 30*(MONTH(F44)-MONTH(F43)) + (F46-F45) + 1) -> 360
A48: Anzahl der Monate für die Berechnung des Stundensatzes | B48: In | C48: ABCD | D48: - | E48: 12 | F48: 12
A49: Dauer des Zeitraums zur Stundensatzberechnung in Tagen (Monatsberechnung) | B49: Calc | C49: ABCD | D49: - | E49: =30*E48 -> 360 | F49: =30*F48 -> 360
A50: Bruttojahresbezug | B50: In | C50: D | D50: D | F50: 0
A51: Dienstvertrag enthält eine Überstundenpauschale (All-In-Vertrag) | B51: In | C51: ABCD | D51: ABCD | E51: Nein | F51: Nein
A52: Wochenarbeitsstunden (bei Bruttojahresbezug) | B52: In | C52: D | D52: D
A53: Pauschalstundensatz (ex. Mode D) | B53: In | C53: - | D53: -
A54: Beginn der Tätigkeit im Kalenderjahr | B54: In | C54: C | D54: C
A55: Ende der Tätigkeit im Kalenderjahr | B55: In | C55: C | D55: C
D56: -
A57: förderb. Bruttogehalts(Lohn)kosten in € | D57: ABC | E57: =SUM(E58:E64) -> 0 | F57: =SUM(F58:F64) -> 0
A58: Nettogehalt (exkl. Diäten, km-Geld, …) | D58: AC | E58: 0 | F58: 0
A59: Nettogehalt (exkl. Diäten, km-Geld, Überstundenentgelt, …) | D59: B | E59: 0 | F59: 0
A60: Dienstnehmeranteil Sozialversicherung (SV) auf LF | D60: ABC | E60: 0 | F60: 0
A61: Dienstnehmeranteil Sozialversicherung (SV) auf SZ | D61: ABC | E61: 0 | F61: 0
A62: Dienstnehmeranteil Lohnsteuer (LST) auf LF | D62: ABC | E62: 0 | F62: 0
A63: Dienstnehmeranteil Lohnsteuer (LST) auf SZ | D63: ABC | E63: 0 | F63: 0
A64: sonstige Abzüge (e-card) | D64: ABC | E64: 0 | F64: 0
A65: nicht förderbare Bruttogehalts(Lohn)kosten in € | D65: ABC | E65: =E66+E67 -> 0 | F65: =F66+F67 -> 0
A66: Überstunden (Grundlohn + Zuschläge) | D66: B | E66: 0 | F66: 0
A67: sonstige Sonderzahlungen | D67: ABC | E67: 0 | F67: 0
A68: förderbare Personalnebenkosten DG-Anteil - gesamt in € | D68: ABC | E68: =SUM(E69:E75) -> 0 | F68: =SUM(F69:F75) -> 0
A69: Dienstgeberanteil Sozialversicherung (SV) auf LF | D69: ABC | E69: 0 | F69: 0
A70: Dienstgeberanteil Sozialversicherung (SV) auf SZ | D70: ABC | E70: 0 | F70: 0
A71: Dienstgeberbeitrag (DB) zum FLAF | D71: ABC | E71: 0 | F71: 0
A72: Zuschlag zum Dienstgeberbeitrag (DZ) | D72: ABC | E72: 0 | F72: 0
A73: Dienstgeberabgabe - U-Bahn-Steuer (nur in Wien) | D73: ABC | E73: 0 | F73: 0
A74: Kommunalsteuer | D74: ABC | E74: 0 | F74: 0
A75: Mitarbeiter-/Betriebl. Vorsorgekasse (MV / BV) | D75: ABC | E75: 0 | F75: 0
A76: Personalnebenkosten nicht förderbar in € | D76: ABC | E76: =SUM(E77:E78) -> 0 | F76: =SUM(F77:F78) -> 0
A77: freiwillige Unternehmensleistungen | D77: ABC | E77: 0 | F77: 0
A78: Aliquote Nebenkosten f. nicht förderb. Bruttobezüge | D78: ABC | E78: =IF(E57=0,0,(E65+E77)/(E57+E65+E77)*E68) -> 0 | F78: =IF(F57=0,0,(F65+F77)/(F57+F65+F77)*F68) -> 0
A79: Summe förderbarer direkter Personalkosten in € | D79: ABC | E79: =E57+E68-E78 -> 0 | F79: =F57+F68-F78 -> 0
A80: Summe förderb. direkter Personalk. f. Tätigkeitszeitraum in €. | B80: Calc | C80: ABC | D80: C | E80: =E79*E92/E91 -> 0 | F80: =F79*F92/F91 -> 0
A81: Personalkostenobergrenze lt. Dienstkl. 7/II in € | B81: Calc | C81: ABCD | D81: ABC | E81: =E114 -> 74870 | F81: =F114 -> 74870
A82: Personalkostenobergrenze lt. Dienstkl. 7/II in f. Tätigkeitsz. in € | B82: Calc | C82: C | D82: C | E82: =E115 -> 74870 | F82: =F115 -> 74870
A83: Wochenarbeitsstunden | B83: In | C83: ABC | D83: ABC | E83: 0 | F83: 0
A84: Tatsächlich geleistete Arbeitszeit in Stunden | B84: Calc | C84: ABCD | D84: A | E84: =IF(Labour_SelectedCalcTypeCell="A",E85,E101) -> 1800 | F84: =IF(Labour_SelectedCalcTypeCell="A",F85,F101) -> 1800
A85: Anwesenheitsstunden inkl. Überstunden | B85: In | C85: A | D85: A | E85: 0 | F85: 0
D86: -
A87: Bruttobezüge | B87: Calc | C87: ABCD | D87: - | E87: =IF(Labour_SelectedCalcTypeCell="D",E50,E80) -> 0 | F87: =IF(Labour_SelectedCalcTypeCell="D",F50,F80) -> 0
A88: Beginn der Tätigkeit im Kalendermonat (Mode C) | B88: Calc | C88: C | D88: - | E88: =IF(AND(MONTH(E54)=2,DAY(E54)>=28),30,MIN(DAY(E54),30)) -> 0 | F88: =IF(AND(MONTH(F54)=2,DAY(F54)>=28),30,MIN(DAY(F54),30)) -> 0
A89: Ende der Tätigkeit im Kalendermonat (Mode C) | B89: Calc | C89: C | D89: - | E89: =IF(AND(MONTH(E55)=2,DAY(E55)>=28),30,MIN(DAY(E55),30)) -> 0 | F89: =IF(AND(MONTH(F55)=2,DAY(F55)>=28),30,MIN(DAY(F55),30)) -> 0
A90: Dauer der Tätigkeit in Tagen (Mode C) | B90: Calc | C90: C | D90: - | E90: =360*(YEAR(E55)-YEAR(E54)) + 30*(MONTH(E55)-MONTH(E54)) + (E89-E88) + 1 -> 1 | F90: =360*(YEAR(F55)-YEAR(F54)) + 30*(MONTH(F55)-MONTH(F54)) + (F89-F88) + 1 -> 1
A91: Abgerechnete Tage | B91: Calc | C91: ABCD | D91: - | E91: =E47 -> 360 | F91: =F47 -> 360
A92: Dauer der Tätigkeit in Tagen | B92: Calc | C92: ABCD | D92: - | E92: =IF(Labour_SelectedCalcTypeCell="C",E90,E91) -> 360 | F92: =IF(Labour_SelectedCalcTypeCell="C",F90,F91) -> 360
A93: Wochenarbeitsstunden Vollzeit | B93: Const. | C93: ABCD | D93: - | E93: 40 | F93: 40
A94: Jahresarbeitsstunden Vollzeit (ohne Überstunden) | B94: Const. | C94: ABCD | D94: - | E94: 1800 | F94: 1800
A95: Jahresarbeitsstunden Vollzeit (All-In-Dienstverträge) | B95: Const. | C95: D | D95: - | E95: 1980 | F95: 1980
A96: max. abrechenbare Überstunden (Nicht All-In-Dienstverträge) | B96: Const. | C96: D | D96: - | E96: 180 | F96: 180
A97: Jahresarbeitsstunden Vollzeit (f. realen Vertrag) | B97: Calc | C97: ABCD | D97: - | E97: =IF(UPPER(E51)="JA",E95,E94) -> 1800 | F97: =IF(UPPER(F51)="JA",F95,F94) -> 1800
A98: Wochenarbeitsstunden Teilzeit | B98: Calc | C98: ABCD | D98: - | E98: =IF(Labour_SelectedCalcTypeCell="D",MIN(E52,E93),MIN(E83,E93)) -> 40 | F98: =IF(Labour_SelectedCalcTypeCell="D",MIN(F52,F93),MIN(F83,F93)) -> 40
A99: Jahresarbeitsstunden Teilzeit (f. realen Vertrag) | B99: Calc | C99: ABCD | D99: - | E99: =E97*E98/E93 -> 1800 | F99: =F97*F98/F93 -> 1800
A100: Arbeitsstunden Teilzeit / Abrechnungszeitraum (f. realen Vertrag) | B100: Calc | C100: ABCD | D100: - | E100: =E99*E91/360 -> 1800 | F100: =F99*F91/360 -> 1800
A101: Arbeitsstunden Teilzeit / Tätigkeitszeitraum (f. realen Vertrag) | B101: Calc | C101: ABCD | D101: - | E101: =IF(Labour_SelectedCalcTypeCell="A",E85,E99*E92/360) -> 1800 | F101: =IF(Labour_SelectedCalcTypeCell="A",F85,F99*F92/360) -> 1800
A102: Bruttobezug pro Jahr (f. reale Wochenarbeitsstunden) | B102: Calc | C102: D | E102: =E87 * (360/E91) -> 0 | F102: =F87 * (360/F91) -> 0
A103: Bruttobezug pro Jahr Vollzeitäquivalent | B103: Calc | C103: D | D103: - | E103: =IF(E98=0,0,E102 * (E93/E98)) -> 0 | F103: =IF(F98=0,0,F102 * (F93/F98)) -> 0
A104: Bruttobezug in €/Std | B104: Calc | C104: D | D104: - | E104: =ROUND(IF(E101=0,0,E87 / E101),5) -> 0 | F104: =ROUND(IF(F101=0,0,F87 / F101),5) -> 0
A105: Lohnkosten Teilzeit / Jahr (inkl. Lohnnebenkosten) | B105: Calc | C105: D | D105: - | E105: =(1.09 * E102 + 0.21 * MIN(E102,E109)) -> 0 | F105: =(1.09 * F102 + 0.21 * MIN(F102,E109)) -> 0
A106: Lohnkosten Teilzeit / Abrechnungszeitraum (inkl. Lohnnebenkosten) | B106: Calc | C106: ABD | D106: - | E106: =IF(Labour_SelectedCalcTypeCell<="B",E79,E105*E91/360) -> 0 | F106: =IF(Labour_SelectedCalcTypeCell<="B",F79,F105*F91/360) -> 0
A107: Lohnkosten in €/Std (inkl. Lohnnebenkosten) | B107: Calc | C107: D | D107: - | E107: =ROUND(IF(E101=0,0,E106 / E101),5) -> 0 | F107: =ROUND(IF(F101=0,0,F106 / F101),5) -> 0
A108: Referenzjahr für Höchstbemessungsgrundlage / Gehalt für Bundesbeamte | B108: Calc | C108: ABCD | D108: - | E108: =IF(Labour_SelectedCalcTypeCell="C",E40,E144) -> 2016 | F108: =IF(Labour_SelectedCalcTypeCell="C",F40,F144) -> 2016
A109: ASVG Höchstbemessungsgrundlage | B109: Lookup | C109: ABCD | D109: - | E109: =VLOOKUP(E108,'TABLE Gehaltsgrenzen'!$A$3:$C$19,3) -> 68040 | F109: =VLOOKUP(F108,'TABLE Gehaltsgrenzen'!$A$3:$C$19,3) -> 68040
A110: Gehalt für Bundesbeamte der allgem.Verwaltung Dienstklasse VII/2 | B110: Lookup | C110: ABCD | D110: - | E110: =VLOOKUP(E108,'TABLE Gehaltsgrenzen'!$A$3:$C$19,2) -> 74870 | F110: =VLOOKUP(F108,'TABLE Gehaltsgrenzen'!$A$3:$C$19,2) -> 74870
A111: Gehalt für Bundesbeamte VII/2 ggf. mit Überstd. (f. realen Vertrag) | B111: Calc | C111: ABD | D111: - | E111: =IF(UPPER(E51)="JA",E110*E95/E94,E110) -> 74870 | F111: =IF(UPPER(F51)="JA",F110*F95/F94,F110) -> 74870
A112: Arbeitsstunden Teilzeit / Tätigkeitszeitraum (f. Beamte) | B112: Calc | C112: ABCD | E112: =IF(Labour_SelectedCalcTypeCell="A",E85,E97*E92/360*E98/E93) -> 1800 | F112: =IF(Labour_SelectedCalcTypeCell="A",F85,F97*F92/360*F98/F93) -> 1800
A113: Jahresgehalt für Beamte Teilzeit in €/Jahr | B113: Calc | C113: ABCD | D113: - | E113: =E111*E98/E93 -> 74870 | F113: =F111*F98/F93 -> 74870
A114: Gehalt für Beamte Dienstkl. VII/2 - Teilzeit in € / Abrechnungszeitraum | B114: Calc | C114: ABCD | D114: - | E114: =E113*E91/360 -> 74870 | F114: =F113*F91/360 -> 74870
A115: Gehalt für Beamte Dienstkl. VII/2 - Teilzeit in € / Tätigkeitszeitraum | B115: Calc | C115: ABCD | D115: - | E115: =E113*E92/360 -> 74870 | F115: =F113*F92/360 -> 74870
A116: Stundenlohn für Beamte lt Dienstkl. VII/2 in €/Std | B116: Calc | C116: ABCD | D116: - | E116: =ROUND(IF(E112=0,0,E114/E112),5) -> 41.59444 | F116: =ROUND(IF(F112=0,0,F114/F112),5) -> 41.59444
A117: Berechneter Stundensatz in €/Std | B117: Calc | C117: D | D117: D | E117: =E107 -> 0 | F117: =F107 -> 0
A118: Personalkostenobergrenze lt. Dienstkl. VII/2 in €/Std | B118: Calc | C118: D | D118: D | E118: =E116 -> 41.59444 | F118: =F116 -> 41.59444
A119: Anrechenbarer Stundensatz in €/Std | B119: Calc | C119: D | D119: D | E119: =MIN(E117,E118) -> 0 | F119: =MIN(F117,F118) -> 0
D120: -
A121: Berechneter Stundensatz in €/Std | B121: Calc | C121: AB | D121: AB | E121: =IF(E84=0,0,E79/E84) -> 0 | F121: =IF(F84=0,0,F79/F84) -> 0
A122: Stundenlohn für Beamte lt Dienstkl. VII/2 in €/Std | B122: Calc | C122: AB | D122: AB | E122: =IF(Labour_SelectedCalcTypeCell="A",IF(E84=0,0,ROUND(E81/E84,5)),E116) -> 41.59444 | F122: =IF(Labour_SelectedCalcTypeCell="A",IF(F84=0,0,ROUND(F81/F84,5)),F116) -> 41.59444
A123: Anrechenbarer Stundensatz in € | B123: Calc | C123: ABD | D123: AB | E123: =IF(Labour_SelectedCalcTypeCell="D",E119,ROUND(MIN(E121,E122),5)) -> 0 | F123: =E123 -> 0
A124: Anrechenbarer Stundensatz in € nach VWK durch BST | B124: Calc | C124: ABD | D124: AB | E124: =E123 -> 0 | F124: =IF(Labour_SelectedCalcTypeCell="D",F119,ROUND(IF(F84=0,0,MIN(F121,F122)),5)) -> 0
A125: anrechenbare Personalkosten in € | B125: Calc | C125: C | D125: C | E125: =ROUND(MIN(E79,E81)*E90/E91,2) -> 0 | F125: =E125 -> 0
A126: anrechenbare Personalkosten nach VWK in € | B126: Calc | C126: C | D126: C | E126: =E125 -> 0 | F126: =ROUND(MIN(F79,F81)*F90/F91,2) -> 0
A127: Abzüge in % (zB nicht förderbarer Gebietskörperschaftsanteil) | B127: In | C127: C | D127: C | E127: 0 | F127: 0
A128: eingereichte anrechenb. Personalkosten in € | B128: Calc | C128: C | D128: C | E128: =ROUND(E125 *(1-E127),2) -> 0 | F128: =ROUND(F125*(1-F127),2) -> 0 | G128: =E128 -> 0 | H128: =F128 -> 0 | M128: =IF(Labour_DataSubmittedCell="No",G128,H128) -> 0
A129: eingereichte anrechenb. Personalkosten nach VWK in € | B129: Calc | C129: C | D129: C | E129: =ROUND(E126*(1-E127),2) -> 0 | F129: =ROUND(F126*(1-F127),2) -> 0 | G129: =E129 -> 0 | H129: =F129 -> 0 | M129: =IF(Labour_DataSubmittedCell="No",G129,H129) -> 0
A130: eingereichte anrechenb. Gemeinkosten (Pauschalsatz in %) | B130: Calc | C130: C | D130: C | E130: 0 | F130: 0
A131: eingereichte anrechenb. Gemeinkosten in € | B131: Calc | C131: C | D131: C | E131: =ROUND(E128*E130,2) -> 0 | F131: =ROUND(F129*F130,2) -> 0 | G131: =E131 -> 0 | H131: 0 | M131: =IF(Labour_DataSubmittedCell="No",G131,H131) -> 0
A132: eingereichte anrechenb. Gemeinkosten in € nach VWK | B132: Calc | C132: C | D132: - | E132: =ROUND(E131,2) -> 0 | F132: =ROUND(F129*F130,2) -> 0 | G132: 0 | H132: 0 | M132: =IF(Labour_DataSubmittedCell="No",G132,H132) -> 0
A133: einger. anrechenb. Personalkosten inkl. Gemeinkosten in € | B133: Calc | C133: C | D133: C | E133: =ROUND(E128+E131,2) -> 0 | F133: =ROUND(F128+F131,2) -> 0 | G133: 0 | H133: 0 | M133: =IF(Labour_DataSubmittedCell="No",G133,H133) -> 0
A134: einger. anrechenb. Personalkosten inkl. Gemeink. nach VWK | B134: Calc | C134: C | D134: C | E134: =ROUND(E129*(1+E130),2) -> 0 | F134: =ROUND(F129*(1+F130),2) -> 0 | G134: 0 | H134: 0 | M134: =IF(Labour_DataSubmittedCell="No",G134,H134) -> 0
D135: ABCD
A136: Berechnete Überweisungen laut Jahreslohnkonto | D136: AC | E136: =E40 -> 2016 | F136: =F40 -> 2016
A137: Sozialversicherung | D137: AC | E137: =E60+E61+E64+E69+E70+E75 -> 0 | F137: =F60+F61+F64+F69+F70+F75 -> 0
A138: Finanzamt | D138: AC | E138: =E62+E63+E71+E72 -> 0 | F138: =F62+F63+F71+F72 -> 0
A139: Kommunalsteuer | D139: AC | E139: =E74 -> 0 | F139: =F74 -> 0
A140: Nettogehalt | D140: AC | E140: =E58+E59 -> 0 | F140: =F58+F59 -> 0
A141: Summe | D141: AC | E141: =SUM(E137:E140) -> 0 | F141: =SUM(F137:F140) -> 0
D142: AC
A143: Gesamtstundenübersicht | D143: ABD
A144: Abgerechnete Tätigkeiten beziehen sich auf das Jahr (JJJJ) | D144: ABD | E144: =E40 -> 2016 | F144: =E144 -> 2016
A145: Beginn des Beschäftigungszeitraums im Kalenderjahr (TT.MM) | B145: In | C145: ABD | D145: ABD | E145: 2016-01-01 | F145: =E145 -> 2016-01-01
A146: Ende des Beschäftigungszeitraums im Kalenderjahr (TT.MM) | B146: In | C146: ABD | D146: ABD | E146: 2016-12-31 | F146: =E146 -> 2016-12-31
A147: Volles Datum des Beginns der Beschäftigung (Tagesberechnung - Mode ABD) | B147: Calc | C147: ABD | D147: - | E147: =DATE(E144,MONTH(E145),DAY(E145)) -> 2016-01-01 | F147: =DATE(F144,MONTH(F145),DAY(F145)) -> 2016-01-01
A148: Volles Datum des Endes der Beschäftigung (Tagesberechnung - Mode ABD) | B148: Calc | C148: ABD | D148: - | E148: =DATE(E144,MONTH(E146),DAY(E146)) -> 2016-12-31 | F148: =DATE(F144,MONTH(F146),DAY(F146)) -> 2016-12-31
A149: Beginn der Beschäftigung im Kalendermonat (Tagesberechnung - Mode ABD) | B149: Calc | C149: ABD | D149: - | E149: =IF(AND(MONTH(E147)=2,DAY(E147)>=28),30,MIN(DAY(E147),30)) -> 1 | F149: =IF(AND(MONTH(F147)=2,DAY(F147)>=28),30,MIN(DAY(F147),30)) -> 1
A150: Ende der Beschäftigung im Kalendermonat (Tagesberechnung - Mode ABD) | B150: Calc | C150: ABD | D150: - | E150: =IF(AND(MONTH(E148)=2,DAY(E148)>=28),30,MIN(DAY(E148),30)) -> 30 | F150: =IF(AND(MONTH(F148)=2,DAY(F148)>=28),30,MIN(DAY(F148),30)) -> 30
A151: Dauer der Beschäftigung in Tagen (Tagesberechnung - Mode ABD) | B151: Calc | C151: ABD | D151: - | E151: =IF(E148-E147<=28,MAX(0,E148-E147+1),360*(YEAR(E148)-YEAR(E147)) + 30*(MONTH(E148)-MONTH(E147)) + (E150-E149) + 1) -> 360 | F151: =IF(F148-F147<=28,MAX(0,F148-F147+1),360*(YEAR(F148)-YEAR(F147)) + 30*(MONTH(F148)-MONTH(F147)) + (F150-F149) + 1) -> 360
A152: Anzahl der beschäftigten Monate (max. 12 Monate / Mitarbeiter) | B152: Obsolete | C152: ABD | D152: - | E152: 12 | F152: 12
A153: Dauer der Tätigkeit in Tagen (Monatsberechnung - Mode ABD) | B153: Calc | C153: ABD | D153: - | E153: =30*MIN(E152,12) -> 360 | F153: =30*MIN(F152,12) -> 360
A154: Bruttobezug enthält ausbezahlte Überstd. (max. 180 Std./Jahr) | B154: In | C154: ABD | D154: ABD | E154: Nein | F154: Nein
A155: Anzahl der Wochenarbeitsstunden | D155: ABD
A156: ="Für " & IF(TRIM(G13)="",IF(TRIM(G5)="","dieses Vorhaben",G5),G13) & " geleistete Stunden" -> Für dieses Vorhaben geleistete Stunden | D156: ABD | F156: 0
A157: ="Summe der bereits für " & IF(TRIM(G13)="",IF(TRIM(G5)="","dieses Vorhaben",G5),G13) & " abgerechnete Stunden" -> Summe der bereits für dieses Vorhaben abgerechnete Stunden | D157: ABD | F157: 0
A158: Max. akzeptable Arbeitsstunden (Vollzeit / Jahr) | C158: ABD | D158: - | E158: =(IF(E51="Ja",E95,IF(E154="Ja",E94+E96,E94))) -> 1800 | F158: =(IF(F51="Ja",F95,IF(F154="Ja",F94+F96,F94))) -> 1800
A159: Max. akzeptable Arbeitsstunden (Teilzeit / Jahr) | C159: ABD | D159: - | E159: =E158*MIN(E155,E93)/E93 -> 1800 | F159: =F158*MIN(F155,F93)/F93 -> 1800
A160: Max. akzeptable Arbeitsstunden (Teilzeit / Beschäftigungszeitraum) | C160: ABD | D160: - | E160: =E159*MIN(E151,360)/360 -> 1800 | F160: =F159*MIN(F151,360)/360 -> 1800
A161: Akzeptable, tatsächlich gearbeitete Stunden | C161: ABD | D161: - | E161: =IF(Labour_SelectedCalcTypeCell<>"A",E160,MIN(E160,E84)) -> 1800 | F161: =IF(Labour_SelectedCalcTypeCell<>"A",F160,MIN(F160,F84)) -> 1800
A162: Noch verfügbare akzeptable Arbeitsstunden für dieses Vorhaben | C162: ABD | D162: - | E162: =MAX(E161-E157,0) -> 1800 | F162: =MAX(F161-F157,0) -> 1800
A163: Dummy Line - Do not Use - Do not Erase | D163: Proj | E163: 0 | F163: 0
A164: Stunden für sonstige Projekte | D164: Proj-ABD | E164: 0 | F164: 0
A165: z.Bsp: Projekt Qualifizierung | D165: Proj-ABD | E165: 0 | F165: 0
A166: z.Bsp: Projekt Vierkanter | D166: Proj-ABD | E166: 0 | F166: 0
D167: Proj-ABD | E167: 0 | F167: 0
D169: Proj | E169: 0 | F169: 0
A170: Dummy Line - Do not Use - Do not Erase | D170: Proj | E170: 0 | F170: 0
A171: Summe über alle Projekte im Abrechnungsjahr | D171: ABD | E171: =E156 + E157 + SUM(E163:E170) -> 0 | F171: =F156 + F157 + SUM(F163:F170) -> 0
A172: Tatsächlich geleistete Arbeitsstunden | D172: A | E172: =E84 -> 1800 | F172: =F84 -> 1800
A173: Faktor: durchschnittliche Jahresleistungsstunden | D173: BD | E173: =E160 -> 1800 | F173: =F160 -> 1800
A174: Tatsächlich geleistete Arbeitsstunden | C174: ABD | D174: - | E174: =E156 -> 0 | F174: =F156 -> 0
A175: Akzeptierte geleistete Arbeitsstunden | D175: - | E175: =MIN(E156,E162) -> 1800 | F175: =MIN(F156,F162) -> 0
A176: eingereichte Personalkosten (ohne Obergrenze) | C176: ABD | D176: ABD | E176: =ROUND(MIN(E156,E162)*E117,2) -> 0 | F176: =ROUND(MIN(F156,F162)*F117,2) -> 0 | G176: =E176 -> 0 | H176: =F176 -> 0 | M176: =IF(Labour_DataSubmittedCell="No",G176,H176) -> 0
A177: Personalkostenobergrenze lt. Dienstkl. VII/2 | C177: ABD | D177: ABD | E177: =E175*E118 -> 74869.992 | F177: =F175*F118 -> 0
A178: anrechenbare Personalkosten | D178: ABD | E178: =ROUND(MIN(E176:E177),2) -> 0 | F178: =ROUND(MIN(F176:F177),2) -> 0
A179: Abzüge in % (zB nicht förderbarer Gebietskörperschaftsanteil) | D179: ABD | E179: 0 | F179: 0
A180: eingereichte Personalkosten | D180: ABD | E180: =ROUND(E178*(1-E179),2) -> 0 | F180: =ROUND(F178*(1-F179),2) -> 0 | G180: =E180 -> 0 | H180: =F180 -> 0 | M180: =IF(Labour_DataSubmittedCell="No",G180,H180) -> 0
A181: Pauschalsatz in % (für Gemeinkosten) | D181: ABD | E181: 0 | F181: 0
A182: eingereichte Gemeinkosten in € | D182: ABD | E182: =ROUND(E180*E181,2) -> 0 | F182: =ROUND(F180*F181,2) -> 0 | G182: =E182 -> 0 | H182: =F182 -> 0 | M182: =IF(Labour_DataSubmittedCell="No",G182,H182) -> 0
A183: eingereichte Personalkosten inkl. Gemeink. in € | D183: ABD | E183: =E180+E182 -> 0 | F183: =F180+F182 -> 0 | G183: =E183 -> 0 | H183: =F183 -> 0 | M183: =IF(Labour_DataSubmittedCell="No",G183,H183) -> 0
D184: ABD
A185: Warnung: Durch das Klicken auf "Eingabe abschließen" werden alle obigen Felder gesperrt. Es sind danach keine Änderungen oder Ergänzungen mehr möglich! | D185: ABCD
D186: ABCD
D187: ABCD
D188: ABCD
B189: Ja | D189: ABCD
B190: Nein | D190: ABCD
A191: Eingabe abgeschlossen am 5. Mai 2017 (11:45) | D191: ABCD
D192: ABCD
D193: ABCD
D194: ABCD
D195: ABCD
A196: Unterschrift | D196: ABCD
D197: ABCD
D198: ABCD
A199: Von BST im Rahmen der VWK auszufüllen | D199: ABCD | G199: Summe | H199: Summe
A200: Stundensatz lt. FW in €/Std | C200: ABCD | D200: - | E200: =IF(Labour_SelectedCalcTypeCell="C",IF(E101<=0,0,ROUND(E125/E101,5)),E123) -> 0 | F200: =E200 -> 0
A201: Stundensatz nach VWK in €/Std | C201: ABCD | D201: - | E201: =E200 -> 0 | F201: =IF(Labour_SelectedCalcTypeCell="C",IF(F101<=0,0,ROUND(F126/F101,5)),F124) -> 0
A202: Stunden lt. Förderwerber | C202: ABCD | D202: - | E202: =IF(Labour_SelectedCalcTypeCell="C",E101,E174) -> 0 | F202: =IF(Labour_SelectedCalcTypeCell="C",F101,F174) -> 0
A203: Stunden maximal | C203: ABCD | D203: - | E203: =E162 -> 1800 | F203: =F162 -> 1800
A204: Stunden effektiv | C204: ABCD | D204: - | E204: =MAX(E202:E203) -> 1800 | F204: =MAX(F202:F203) -> 1800
A205: Abzüge in % (zB nicht förderbarer Gebietskörperschaftsanteil) | C205: ABCD | D205: - | E205: =IF(Labour_SelectedCalcTypeCell="C",E127,E179) -> 0 | F205: =IF(Labour_SelectedCalcTypeCell="C",F127,F179) -> 0
A206: Gemeinskostensatz | C206: ABCD | D206: - | E206: =IF(Labour_SelectedCalcTypeCell="C",E130,E181) -> 0 | F206: =IF(Labour_SelectedCalcTypeCell="C",F130,F181) -> 0
A207: Anzahl der zu vermindernden Stunden durch VWK | D207: ABCD | E207: 0 | F207: 0 | G207: =E207 -> 0 | H207: =G207 -> 0 | M207: =IF(Labour_DataSubmittedCell="No",G207,H207) -> 0
A208: Abzüge in % vermindert durch VWK | D208: ABCD | E208: 0 | F208: 0
A209: Anzahl der sanktionsrelevant zu vermindernden Stunden durch VWK | D209: ABCD | E209: 0 | F209: 0 | G209: =E209 -> 0 | H209: =G209 -> 0 | M209: =IF(Labour_DataSubmittedCell="No",G209,H209) -> 0
A210: Abzüge in % sanktionsrelevant durch VWK | D210: ABCD | E210: 0 | F210: 0
D211: ABCD
A212: förderbare Personalkosten eingereicht laut FW | D212: - | E212: =ROUND(MIN(E202,E203)*E200*(1-E205),2) -> 0 | F212: =ROUND(MIN(F202,F203)*F200*(1-F205),2) -> 0 | G212: =E212 -> 0 | H212: =G212 -> 0 | M212: =IF(Labour_DataSubmittedCell="No",G212,H212) -> 0
A213: verminderte Personalkosten nach VWK | D213: ABCD | E213: =ROUND(MAX(0,MIN((E202-E207),E203)*E200)*(1-E205-E208),2) -> 0 | F213: =ROUND(MAX(0,MIN((F202-F207),F203)*F201)*(1-F205-F208),2) -> 0 | G213: =E213 -> 0 | H213: =G213 -> 0 | M213: =IF(Labour_DataSubmittedCell="No",G213,H213) -> 0
A214: anrechenbare Personalkosten nach VWK | D214: ABCD | E214: =ROUND(MAX(0,MIN((E202-E207-E209),E203)*E200)*(1-E205-E208-E210),2) -> 0 | F214: =ROUND(MAX(0,MIN((F202-F207-F209),F203)*F201)*(1-F205-F208-F210),2) -> 0 | G214: =E214 -> 0 | H214: =G214 -> 0 | M214: =IF(Labour_DataSubmittedCell="No",G214,H214) -> 0
D215: ABCD
A216: förderbare Personalkosten inkl. Gemeinkosten eingereicht laut FW | D216: - | E216: =ROUND(E212*(1+E206),2) -> 0 | F216: =ROUND(F212*(1+F206),2) -> 0 | G216: =E216 -> 0 | H216: =G216 -> 0 | M216: =IF(Labour_DataSubmittedCell="No",G216,H216) -> 0
A217: verminderte Personalkosten inkl. Gemeinkosten nach VWK | D217: ABCD | E217: =ROUND(E213*(1+E206),2) -> 0 | F217: =ROUND(F213*(1+F206),2) -> 0 | G217: =E217 -> 0 | H217: =G217 -> 0 | M217: =IF(Labour_DataSubmittedCell="No",G217,H217) -> 0
A218: anrechenbare Personalkosten inkl. Gemeinkosten nach VWK | D218: ABCD | E218: =ROUND(E214*(1+E206),2) -> 0 | F218: =ROUND(F214*(1+F206),2) -> 0 | G218: =E218 -> 0 | H218: =G218 -> 0 | M218: =IF(Labour_DataSubmittedCell="No",G218,H218) -> 0
... 24 more rows

Sheet Notizen
A1: Zahlungsantrag - Notizen und Anmerkungen
L2: RL/AMA v469.11 / Feb. 2019
A3: Betriebs-/Klientennummer: | D3: =TRIM('Auswahl Belegaufstellungen'!Stm_ApplicantID) -> 
A5: Förderungswerber: | D5: =TRIM('Auswahl Belegaufstellungen'!Stm_ApplicantName) -> 
A7: Antragsnummer: | D7: =TRIM('Auswahl Belegaufstellungen'!Stm_ApplicationID) -> 
A9: Fördergegenstand:
A11: Vorsteuerabzugsberechtigung: | D11: =TRIM('Auswahl Belegaufstellungen'!Stm_TaxDeduct) -> Ja
A13: Genehmigter Zeitraum für | D13: Beginn | F13: Ende
A14: Kostenanerkennung: | D14: =IF(TRIM('Auswahl Belegaufstellungen'!Stm_SupportPeriodStart)="","",'Auswahl Belegaufstellungen'!Stm_SupportPeriodStart) ->  | F14: =IF(TRIM('Auswahl Belegaufstellungen'!Stm_SupportPeriodEnd)="","",'Auswahl Belegaufstellungen'!Stm_SupportPeriodEnd) -> 
A16: Hier ist Raum für freie Notizen, Anmerkungen und Nebenrechnungen…

Sheet TEMPLATE Notizen (hidden)
A1: Zahlungsantrag - Notizen und Anmerkungen
L2: RL/AMA v469.11 / Feb. 2019
A3: Betriebs-/Klientennummer:
A5: Förderungswerber:
A7: Antragsnummer:
A9: Fördergegenstand:
A11: Vorsteuerabzugsberechtigung: | D11: Ja
A13: Genehmigter Zeitraum für | D13: Beginn | F13: Ende
A14: Kostenanerkennung:
A16: Hier ist Raum für freie Notizen, Anmerkungen und Nebenrechnungen…

Sheet TABLE Gehaltsgrenzen (hidden)
A1: 2019 | B1: [1] Beamten | C1: [2] ASVG
A2: Jahr | B2: Dienstkl. VII/2 | C2: HöchstbeitragsGL
A3: 2007 | B3: 64120.14 | C3: 53760 | D3: =B3/14 -> 4580.01 | E3: =C3/14 -> 3840
A4: 2008 | B4: 65829.6 | C4: 55020 | D4: 4702.114286 | E4: 3930
A5: 2009 | B5: 68166.82 | C5: 56280 | D5: 4869.058571 | E5: 4020
A6: 2010 | B6: 68858.89 | C6: 57540 | D6: 4918.492143 | E6: 4110
A7: 2011 | B7: 69450 | C7: 58800 | D7: 4960.714286 | E7: 4200
A8: 2012 | B8: 71290 | C8: 59220 | D8: 5092.142857 | E8: 4230
A9: 2013 | B9: 71280 | C9: 62160 | D9: 5091.428571 | E9: 4440
A10: 2014 | B10: 72380 | C10: 63420 | D10: 5170 | E10: 4530
A11: 2015 | B11: 73670 | C11: 65100 | D11: 5262.142857 | E11: 4650
A12: 2016 | B12: 74870 | C12: 68040 | D12: 5347.857143 | E12: 4860
A13: 2017 | B13: 77610 | C13: 69720 | D13: 5543.571429 | E13: 4980
A14: 2018 | B14: 79320 | C14: 71820 | D14: 5665.714286 | E14: 5130
A15: 2019 | B15: 81570 | C15: 73080 | D15: 5826.428571 | E15: 5220
A16: 2020 | B16: 100000 | C16: 80000 | E16: =C16/14 -> 5714.285714
A17: 2021 | B17: 100000 | C17: 80000 | E17: =C17/14 -> 5714.285714
A18: 2022 | B18: 100000 | C18: 80000 | E18: =C18/14 -> 5714.285714
A19: 2023 | B19: 100000 | C19: 80000 | E19: =C19/14 -> 5714.285714
A21: ACHTUNG: Wenn Daten für ein neues Jahr eingetragen werden, muss auch in Zelle A1 die Jahreszahl angepasst werden.
A22: Sonst beschwert sich die Personalkostenaufstellung weiter über ungültige Höchstwerte.
A24: [1] Jahresbruttogehälter für Beamte der allgemeinen Verwaltung der Dienstklasse VII / Gehaltstufe 2 (lt. Gehaltsgesetz - GehG §118(5))
B25: https://www.ris.bka.gv.at/NormDokument.wxe?Abfrage=Bundesnormen&Gesetzesnummer=10008163&FassungVom=2015-09-28&Paragraf=118
A26: Inkrafttretensdatum | B26: Außerkrafttretensdatum | F26: 12 Monate | G26: 14 Monate | H26: Jahr/14Mon.
A27: 2007-01-01 | B27: 2007-12-31 | C27: 3065.4 | E27: 2007 | F27: =12*C27 -> 36784.8 | G27: =F27*14/12 -> 42915.6 | H27: =B3/G27 -> 1.494098649
A28: 2008-01-01 | B28: 2008-12-31 | C28: 3148.2 | E28: 2008 | F28: =12*C28 -> 37778.4 | G28: 44074.8 | H28: 1.493588173
A29: 2009-01-01 | B29: 2009-12-31 | C29: 3260 | E29: 2009 | F29: =12*C29 -> 39120 | G29: 45640 | H29: 1.493576249
A30: 2010-01-01 | B30: 2010-12-31 | C30: 3293.3 | E30: 2010 | F30: =12*C30 -> 39519.6 | G30: 46106.2 | H30: 1.49348439
A31: 2011-01-01 | B31: 2012-01-31 | C31: 3321.3 | E31: 2011 | F31: =12*C31 -> 39855.6 | G31: 46498.2 | H31: 1.493606204
A32: 2012-02-01 | B32: 2014-02-28 | C32: 3417.4 | E32: 2012 | F32: =C31+11*C32 -> 40912.7 | G32: 47731.48333 | H32: 1.493563473
A33: 2014-03-01 | B33: 2015-02-11 | C33: 3479.7 | E33: 2013 | F33: =12*C32 -> 41008.8 | G33: 47843.6 | H33: 1.489854442
A34: 2015-02-12 | C34: 3479.7 | E34: 2014 | F34: =2*C32+10*C33 -> 41631.8 | G34: 48570.43333 | H34: 1.490207005
E35: 2015 | F35: =1.4*C33+10.6*C34 -> 41756.4 | G35: 48715.8 | H35: 1.512240382
E36: 2016
A38: Es ist unklar wie genau man von den im Gesetz aufgeführten Monatsgehältern zu den in der obigen Tabelle aufgeführten
A39: Jahresbruttogehältern kommt. Vermutlich muss man die passenden Dienstgeberbeiträge aufschlagen, aber wie genau…
A40: Näherungsweise passend wäre: 14 Monatsgehälter + Sozialversicherung Aufschlag = Jahresgehalt ?!?
A42: [2] ASVG (Allgem. SozialVersicherungsGesetz) Höchstbeitragsgrundlage für die Berechnung der Beiträge zur Sozialversicherung
B43: https://de.wikipedia.org/wiki/Höchstbeitragsgrundlage
A45: Beitragsrechtliche Sätze 2016: (http://sozialversicherung.at --> ÜBER UNS --> Zahlen - Daten - Fakten / Aktuelle Werte)
B46: https://www.sozialversicherung.at/portal27/sec/portal/esvportal/content/contentWindow?contentid=10008.626564&action=b&cacheability=PAGE&version=1450778169
A48: 2007
A49: 2008
A50: 2009
A51: 2010
A52: 2011
A53: 2012
A54: 2013
A55: 2014
A56: 2015
A57: 2016
A59: VO 640/2014 = Delegierte Verordnung (EU) Nr. 640/2014 der Kommission vom 11. März 2014
A60: https://www.bmlfuw.gv.at/dam/jcr:05e477c3-6d14-412a-beb1-93380de11239/640_2014.pdf
A61: http://eur-lex.europa.eu/legal-content/de/ALL/?uri=CELEX%3A32014R0640
